Workbook

Sheet Sheet1
A1: 附件2
A2: 贵阳贵安2026年公开招聘事业单位工作人员岗位一览表
A4: 注：1.本岗位表来源贵阳市人力资源和社会保障局官方网站（http://rsj.guiyang.gov.cn/），请考生通过官方网站下载查阅。 2.“岗位类别”设A、B、C类，其中，A类为管理人员岗位，B类为专业技术人员岗位，C类为教师岗位。笔试考试大纲类别统一为综合管理类（A类），综合管理类（A类）考试大纲详见“贵州人事考试信息网”-《事业单位公开招聘分类考试公共科目笔试考试大纲（2026年版）》。
A5: 序号 | B5: 主管单位 | C5: 单位代码 | D5: 招聘单位 | E5: 单位 性质 | F5: 招聘 总人数 | G5: 岗位 | M5: 要求 | Q5: 其它招聘条件 | R5: 单位地址 | S5: 联系人及联系电话
G6: 岗位 代码 | H6: 招聘人数 | I6: 岗位 类别 | J6: 岗位名称 | K6: 岗位职能简介 | L6: 是否组织专业测试（试教） | M6: 学历 | N6: 专业
N7: 大专 | O7: 本科 | P7: 硕士研究生及以上专业
A8: 1 | B8: 中共贵阳市委政法委员会 | C8: 0101 | D8: 贵阳市关爱中心 | E8: 全额拨款 | F8: 2 | G8: 20101010101 | H8: 2 | I8: A | J8: 管理岗位 | K8: 从事特殊人员教育工作。 | L8: 否 | M8: 本科及以上 | O8: 哲学专业、宗教学专业、科学社会主义专业、中国共产党历史专业、思想政治教育专业、马克思主义理论专业、汉语言文学专业、汉语言专业、应用语言学专业 | P8: 马克思主义哲学专业、宗教学专业、科学社会主义与国际共产主义运动专业、中共党史专业、马克思主义基本原理专业、思想政治教育专业、语言学及应用语言学专业 | Q8: 1.中共党员（含预备党员）； 2.具有与学历、专业相应的学位。 | R8: 贵阳市观山湖区林城东路3号 | S8: 邓羽斯 0851-88935096
C9: 0102 | D9: 贵阳市社会治理综合服务中心 | E9: 全额拨款 | F9: 4 | G9: 20101010201 | H9: 1 | I9: A | J9: 管理岗位 | K9: 从事办公室综合管理、公文写作、统筹协调、后勤保障、综合调研等工作。 | L9: 否 | M9: 本科及以上 | O9: 汉语言文学专业、中国语言与文化专业、汉语言专业、法学专业、秘书学专业、社会学专业、社会工作专业、哲学类（一级学科）、马克思主义理论类（一级学科）、政治学类（一级学科）、新闻传播学类（一级学科） | P9: 社会学专业、社会工作专业、中国语言文学（一级学科）、法学（一级学科）、哲学（一级学科）、政治学（一级学科）、马克思主义理论（一级学科）、新闻传播学（一级学科） | Q9: 1.中共党员（含预备党员）； 2.具有与学历、专业相应的学位。 | R9: 贵阳市观山湖区林城东路3号 | S9: 张元春 0851-87989964
G10: 20101010202 | H10: 2 | I10: A | J10: 管理岗位 | K10: 从事综合业务类、负责统筹协调、公文写作、综合调研等工作。 | L10: 否 | M10: 本科及以上 | O10: 不限专业 | P10: 不限专业 | Q10: 1.中共党员（含预备党员）； 2.具有与学历、专业相应的学位； 3.具有1年及以上基层工作经历的高校毕业生。
G11: 20101010203 | H11: 1 | I11: B | J11: 专业技术岗位 | K11: 从事数据采集、信息收集、动态监测、数据分析、信息安全管理等工作；协助办公室综合性日常工作和公文写作等相关工作。 | L11: 否 | M11: 本科及以上 | O11: 计算机类（一级学科）、电子信息类（一级学科）、大数据管理与应用专业、数学与应用数学专业、信息与计算科学专业、数据计算及应用专业、概率论与数理统计专业、统计学专业、应用统计学专业、数据科学专业 | P11: 计算数学专业、概率论与数理统计专业、应用数学专业、统计学（一级学科）、信息与通信工程（一级学科）、计算机科学与技术（一级学科）、网络空间安全（一级学科） | Q11: 1.中共党员（含预备党员）； 2.具有与学历、专业相应的学位。
A12: 2 | B12: 中共贵阳市委网络安全和信息化委员会办公室 | C12: 0103 | D12: 贵阳市互联网舆情研究中心 | E12: 全额拨款 | F12: 2 | G12: 20101010301 | H12: 1 | I12: A | J12: 管理岗位 | K12: 从事网络安全和信息化工作。 | L12: 否 | M12: 本科及以上 | O12: 法学专业、汉语言文学专业、网络与新媒体专业、财务管理专业、计算机科学与技术专业、信息安全专业 | P12: 法学(一级学科)、中国语言文学（一级学科）、新闻与传播(专硕）、计算机科学与技术（一级学科） | Q12: 1.中共党员（含预备党员）； 2.具有与学历、专业相应的学位； 3.该岗位需要开展24小时应急值守、经常性参与处理突发应急工作。 | R12: 贵阳市观山湖区市级行政中心市委大楼四楼 | S12: 易小波 13885645153
G13: 20101010302 | H13: 1 | I13: A | J13: 管理岗位 | K13: 从事网络安全和信息化工作。 | L13: 否 | M13: 研究生 | P13: 专业不限 | Q13: 1.中共党员（含预备党员）； 2.具有与学历、专业相应的学位； 3.该岗位需要开展24小时应急值守、经常性参与处理突发应急工作。 | R13: 贵阳市观山湖区市级行政中心市委大楼四楼 | S13: 易小波 13885645153
A14: =MAX($A$1:A13)+1 -> 3 | B14: 贵阳市信访局 | C14: 0104 | D14: 贵阳市人民群众来访接待服务中心 | E14: 全额拨款 | F14: 1 | G14: 20101010401 | H14: 1 | I14: B | J14: 专业技术岗位 | K14: 从事财务相关工作。 | L14: 否 | M14: 本科及以上 | O14: 会计学专业、财务管理专业、审计学专业 | P14: 会计学专业、会计（专硕）、审计（专硕） | Q14: 1.具有中级及以上会计专业技术资格且具有两年及以上会计相关工作经历； 2.具有与学历、专业相应的学位。 | R14: 贵阳市观山湖区金华园街道金阳北路304号 | S14: 马紫涵 13176170673
A15: =MAX($A$1:A14)+1 -> 4 | B15: 贵阳市市委直属 | C15: 0105 | D15: 贵阳孔学堂文化传播中心 | E15: 全额拨款 | F15: 2 | G15: 20101010501 | H15: 1 | I15: A | J15: 管理岗位 | K15: 从事综合协调、文稿起草；活动组织、宣传推广、国际传播等相关工作。 | L15: 否 | M15: 本科及以上 | O15: 思想政治教育专业、马克思主义理论专业、汉语言文学专业、哲学（一级学科）、历史学（一级学科)、播音与主持艺术专业 | P15: 历史学（学科门类）、哲学（一级学科）、中国语言文学（一级学科）、新闻传播学（一级学科）、马克思主义理论（一级学科）、政治学（一级学科） | Q15: 具有与学历、专业相应的学位。 | R15: 贵阳市花溪区董家堰贵阳孔学堂 | S15: 刘波、李承园 0851-83613818
G16: 20101010502 | H16: 1 | I16: B | J16: 专业技术岗位 | K16: 从事学刊编辑、管理、宣传推广、融媒体等相关工作。 | L16: 是 | M16: 本科及以上 | O16: 编辑出版学专业、数字出版专业 | P16: 新闻传播学（一级学科）、出版（专硕） | Q16: 1.中共党员 （含预备党员）； 2.具有与学历、专业相应的学位； 3.具有中级及以上出版、新闻专业技术职称资格。 | R16: 贵阳市花溪区董家堰贵阳孔学堂 | S16: 刘波、李承园 0851-83613818
A17: =MAX($A$1:A16)+1 -> 5 | B17: 贵阳市科学技术局 | C17: 0106 | D17: 贵阳生产力促进中心 | E17: 全额拨款 | F17: 1 | G17: 20101010601 | H17: 1 | I17: A | J17: 管理岗位 | K17: 从事科技管理，产业（行业）战略咨询等相关工作。 | L17: 否 | M17: 本科及以上 | O17: 电子信息类（一级学科）、环境科学与工程类（一级学科） | P17: 电子信息（一级学科）、环境科学与工程（一级学科） | Q17: 1.具有与学历、专业相应的学位； 2.定向招聘2026年度高校毕业生。 | R17: 贵阳市观山湖区（高新）阳关大道28号西部研发基地2号楼14层 | S17: 李心悛 0851-85563291； 牟长军 0851-87989257
A18: =MAX($A$1:A17)+1 -> 6 | B18: 贵阳市工业和信息化局 | C18: 0107 | D18: 贵阳市中小企业服务中心 | E18: 全额拨款 | F18: 1 | G18: 20101010701 | H18: 1 | I18: B | J18: 专业技术岗位 | K18: 从事工业经济相关工作。 | L18: 否 | M18: 本科及以上 | O18: 经济学(学科门类) | P18: 经济学(学科门类) | Q18: 1.具有与学历、专业相应的学位； 2.具有1年及以上基层工作经历的高校毕业生。 | R18: 贵阳市云岩区民生路钰达大厦A栋5楼 | S18: 陈志 0851-86581276
C19: 0108 | D19: 中关村贵阳科技园创新服务中心 | E19: 全额拨款 | F19: 1 | G19: 20101010801 | H19: 1 | I19: A | J19: 管理岗位 | K19: 从事工业产品推广工作，负责办公室日常工作，文字材料撰写等。 | L19: 否 | M19: 本科及以上 | O19: 市场营销专业、电子商务专业、物流管理专业 | P19: 管理学(学科门类) | Q19: 1.具有与学历、专业相应的学位； 2.具有1年及以上基层工作经历的高校毕业生。 | R19: 贵阳市云岩区延安中路48号世贸广场A座22楼 | S19: 蔡丽娟 0851-85555738
C20: 0109 | D20: 贵阳市煤炭安全生产技术中心 | E20: 全额拨款 | F20: 2 | G20: 20101010901 | H20: 1 | I20: B | J20: 专业技术岗位 | K20: 从事全市煤炭安全生产管理技术支持和服务工作。 | L20: 是 | M20: 本科及以上 | O20: 安全工程专业、应急技术与管理专业、安全生产监管专业 | P20: 安全科学与工程（一级学科） | Q20: 1.具有与学历、专业相应的学位； 2.具有2年以上（含两年）井工煤矿安全现场管理经历或2年以上（含两年）煤矿基层监管部门直接从事煤矿安全监管工作经历； 3.需下井从事煤矿安全检查工作，限男性报考。 | R20: 贵阳市观山湖区市级行政中心 | S20: 艾龙 0851-87989355
G21: 20101010902 | H21: 1 | I21: B | J21: 专业技术岗位 | K21: 从事全市煤炭安全生产管理技术支持和服务工作。 | L21: 是 | M21: 本科及以上 | O21: 地质工程专业、勘查技术与工程专业、资源勘查工程专业、测绘工程专业 | P21: 地质资源与地质工程（一级学科）、测绘科学与技术（一级学科） | Q21: 1.具有与学历、专业相应的学位； 2.具有2年以上（含两年）井工煤矿安全现场管理经历或2年以上（含两年）煤矿基层监管部门直接从事煤矿安全监管工作经历； 3.需下井从事煤矿安全检查工作，限男性报考。
A22: =MAX($A$1:A21)+1 -> 7 | B22: 贵阳市民政局 | C22: 0110 | D22: 贵阳市社会救助服务中心 | E22: 全额拨款 | F22: 1 | G22: 20101011001 | H22: 1 | I22: A | J22: 管理岗位 | K22: 负责做好低保、特困供养、服务类社会救助等政策咨询、综合服务相关工作。 | L22: 否 | M22: 本科及以上 | O22: 法学类（一级学科）、社会学类（一级学科）、公共管理类（一级学科）、心理学类（一级学科） | P22: 法学（一级学科）、社会学专业、社会工作专业、公共管理（一级学科）、心理学（一级学科） | Q22: 1.具有与学历、专业相应的学位； 2.具有1年及以上基层工作经历的高校毕业生。 | R22: 贵阳市观山湖区金阳北路306号 | S22: 魏强 0851-85832735
C23: 0111 | D23: 贵阳市精神病医院 | E23: 全额拨款 | F23: 3 | G23: 20101011101 | H23: 2 | I23: B | J23: 专业技术岗位 | K23: 男病区护理工作。 | L23: 是 | M23: 本科及以上 | O23: 护理学专业 | P23: 护理专业、护理学专业 | Q23: 1.具有护士资格证、护士执业证； 2.具有与学历、专业相应的学位。 | R23: 贵阳市南明区见龙洞路291号 | S23: 魏强 0851-85832735
G24: 20101011102 | H24: 1 | I24: B | J24: 专业技术岗位 | K24: 主要开展个案服务、小组活动、心理支持与教育等工作，使用社工工作方法，助力病患回归社会，协助康复治疗师、临床医师、病区医护等人员开展相关工作。 | L24: 否 | M24: 本科及以上 | O24: 不限专业 | P24: 不限专业 | Q24: 1.中共党员（含预备党员）； 2.具有助理社会工作师及以上职业资格证书； 3.具有与学历、专业相应的学位； 4.具有1年及以上基层工作经历的高校毕业生。 | R24: 贵阳市南明区见龙洞路291号 | S24: 魏强 0851-85832735
C25: 0112 | D25: 贵阳市社会福利院 | E25: 全额拨款 | F25: 1 | G25: 20101011201 | H25: 1 | I25: A | J25: 管理岗位 | K25: 从事养老服务事业促进和发展研究、养老服务机构综合管理和老年人健康服务工作。 | L25: 否 | M25: 本科及以上 | O25: 老年学专业、养老服务管理专业、健康服务与管理专业、中国语言文学类（一级学科）、法学类（一级学科） | P25: 不限专业 | Q25: 1.中共党员（含预备党员）； 2.具有与学历、专业相应的学位。 | R25: 贵阳市云岩区大营路171号 | S25: 魏强 0851-85832735
C26: 0113 | D26: 贵阳市儿童福利院 | E26: 全额拨款 | F26: 1 | G26: 20101011301 | H26: 1 | I26: A | J26: 管理岗位 | K26: 负责单位采购及其他工作。 | L26: 否 | M26: 本科及以上 | O26: 采购管理专业、汉语言文学专业、行政管理专业 | P26: 不限专业 | Q26: 1.具有与学历、专业相应的学位； 2.定向招聘2026年度高校毕业生。 | R26: 贵阳市龙洞堡龙水路111号 | S26: 魏强 0851-85832735
C27: 0114 | D27: 贵阳市康复医院 | E27: 差额补贴 | F27: 1 | G27: 20101011401 | H27: 1 | I27: B | J27: 专业技术岗位 | K27: 负责中医科日常诊疗工作。 | L27: 是 | M27: 本科及以上 | O27: 中医学类（一级学科） | P27: 中医学（一级学科）、中医专业 | Q27: 1.具有与学历、专业相应的学位； 2.具有执业医师资格证。 | R27: 贵阳市南明区指月街9号 | S27: 魏强 0851-85832735
C28: 0115 | D28: 贵阳市第二社会福利院 | E28: 全额拨款 | F28: 1 | G28: 20101011501 | H28: 1 | I28: B | J28: 专业技术岗位 | K28: 从事养老服务事业促进和发展研究、养老服务机构综合管理和老年人健康服务工作。 | L28: 否 | M28: 研究生 | P28: 不限专业 | Q28: 1.具有与学历、专业相应的学位； 2.具有1年及以上基层工作经历的高校毕业生。 | R28: 贵阳市南明区二福路7号 | S28: 魏强 0851-85832735
C29: 0116 | D29: 贵阳市殡葬管理所 | E29: 全额拨款 | F29: 1 | G29: 20101011601 | H29: 1 | I29: A | J29: 管理岗位 | K29: 从事殡葬管理相关工作。 | L29: 否 | M29: 研究生 | P29: 不限专业 | Q29: 1.中共党员（含预备党员）； 2.具有与学历、专业相对应的学位； 3.具有1年及以上基层工作经历的高校毕业生。 | R29: 贵阳市云岩区大营坡常青路57号 | S29: 魏强 0851-85832735
C30: 0117 | D30: 贵阳市慈善事业促进发展中心 | E30: 全额拨款 | F30: 1 | G30: 20101011701 | H30: 1 | I30: A | J30: 管理岗位 | K30: 从事社会组织服务；单位内部管理和财会管理等相关工作。 | L30: 否 | M30: 研究生 | P30: 审计专业、会计专业、会计学专业、税务专业、统计学专业、应用统计专业 | Q30: 1.具有与学历、专业相应的学位； 2.具有初级及以上会计专业技术资格或初级审计师及以上资格证书； 3.具有1年及以上基层工作经历的高校毕业生。 | R30: 贵阳市南明区指月街9号 | S30: 魏强 0851-85832735
C31: 0118 | D31: 贵阳市区划地名服务中心 | E31: 差额补贴 | F31: 3 | G31: 20101011801 | H31: 1 | I31: A | J31: 管理岗位 | K31: 从事公文写作及办公室日常工作。 | L31: 否 | M31: 本科及以上 | O31: 法学专业、汉语言文学专业、汉语言专业、中国语言与文化专业、秘书学专业、编辑出版学专业 | P31: 不限专业 | Q31: 1.具有与学历、专业相应的学位； 2.具有1年及以上基层工作经历的高校毕业生。 | R31: 贵阳市云岩区百花山路28号 | S31: 魏强 0851-85832735
G32: 20101011802 | H32: 1 | I32: B | J32: 专业技术岗位 | K32: 从事档案收集、整理、鉴定、归档、保管等，严格按照《地名档案管理办法》等行业标准，对地名命名文件、行政区域界线勘界资料、地名普查档案文件、边界纠纷调处档案等不同类型资料进行分类归档。 | L32: 否 | M32: 本科及以上 | O32: 图书馆学专业、档案学专业、信息资源管理专业 | P32: 图书情报与档案管理（一级学科） | Q32: 具有与学历、专业相应的学位 | R32: 贵阳市云岩区百花山路28号 | S32: 魏强 0851-85832735
G33: 20101011803 | H33: 1 | I33: B | J33: 专业技术岗位 | K33: 从事地理测绘、地图绘制、空间数据采集与分析、地理信息数据库建设等工作，为行政区划界线精准管理、行政区划基础研究、地名实体位置精准标注升级提供技术支撑。 | L33: 是 | M33: 本科及以上 | O33: 测绘工程专业、遥感科学与技术专业，地理国情监测专业、地理空间信息工程专业、人文地理与城乡规划专业 | P33: 测绘科学与技术（一级学科）、地质资源与地质工程（一级学科）、遥感科学与技术（一级学科） | Q33: 具有与学历、专业相应的学位 | R33: 贵阳市云岩区百花山路28号 | S33: 魏强 0851-85832735
A34: =MAX($A$1:A33)+1 -> 8 | B34: 贵阳市财政局 | C34: 0119 | D34: 贵阳市财政预算评审中心 | E34: 全额拨款 | F34: 1 | G34: 20101011901 | H34: 1 | I34: B | J34: 专业技术岗位 | K34: 从事财政预算评审相关工作。 | L34: 否 | M34: 本科及以上 | O34: 经济学(学科门类) | P34: 经济学(学科门类) | Q34: 1.中共党员（含预备党员）； 2.具有与学历、专业相应的学位； 3.具有1年及以上基层工作经历的高校毕业生。 | R34: 贵阳市市级行政中心政府一期B区 | S34: 张而立 0851-85806937
A35: =MAX($A$1:A34)+1 -> 9 | B35: 贵阳市人力资源和社会保障局 | C35: 0120 | D35: 贵阳市企业离退休人员托管中心 | E35: 全额拨款 | F35: 1 | G35: 20101012001 | H35: 1 | I35: B | J35: 专业技术岗位 | K35: 负责各项资金资产的财务管理与绩效评价工作；负责产业园运营经费、人社公共服务中心运行经费等各类费用的监督、管理及执行；协助园区招商、数据分析、资产管理维护、楼宇安全等运营管理工作。 | L35: 否 | M35: 本科及以上 | O35: 劳动经济学专业、经济学专业、数字经济专业 | P35: 劳动经济学专业、产业经济学专业、数量经济学专业 | Q35: 1.具有初级及以上会计专业技术资格证； 2.具有3年以上人力资源管理工作经验； 3.具有与学历、专业相应的学位。 | R35: 贵阳市观山湖区凯里路235号贵阳市人社公共服务中心11楼 | S35: 吴海一 0851-86824175
A36: =MAX($A$1:A35)+1 -> 10 | B36: 贵阳市自然资源和规划局 | C36: 0121 | D36: 贵阳市测绘院 | E36: 自收自支 | F36: 1 | G36: 20101012101 | H36: 1 | I36: B | J36: 专业技术岗位 | K36: 从事会计岗位相关工作。 | L36: 是 | M36: 研究生 | P36: 会计（专硕）、会计学专业、 审计（专硕）、审计学专业 | Q36: 1.具有与学历、专业相应的学位； 2.具有中级及以上会计专业技术资格证书（或具有注册会计师职业资格证书）； 3.具有2年及以上相关工作经历。 | R36: 贵阳市观山湖区桃林路1号 | S36: 苏菲 0851-85868871
C37: 0122 | D37: 贵阳市城乡规划展览馆 | E37: 全额拨款 | F37: 1 | G37: 20101012201 | H37: 1 | I37: B | J37: 专业技术岗位 | K37: 从事宣传讲解、布展策划、科普教育等工作。 | L37: 是 | M37: 本科及以上 | O37: 播音与主持艺术专业、音乐学专业、广播电视学专业、网络与新媒体专业 | P37: 新闻传播学（一级学科）、艺术学（一级学科） | Q37: 1.具有与学历、专业相应的学位； 2.具有普通话一级乙等及以上证书。 | R37: 贵阳市观山湖区中天路2号 | S37: 王修竹 17385612040
C38: 0123 | D38: 贵阳市土地矿产资源储备中心 | E38: 全额拨款 | F38: 1 | G38: 20101012301 | H38: 1 | I38: A | J38: 管理岗位 | K38: 从事地块招商推介策划、图册设计，土地储备业务系统管理维护、网络信息安全等相关工作。 | L38: 否 | M38: 研究生 | P38: 新闻学专业、传播学专业、设计艺术学专业、计算机应用技术专业、网络空间安全专业 | Q38: 1.具有与学历、专业相应的学位； 2.具有1年及以上基层工作经历的高校毕业生。 | R38: 贵阳市云岩区瑞金北路23号 | S38: 惠瑜琳 0851-86508089
C39: 0124 | D39: 贵阳市不动产登记中心 | E39: 全额拨款 | F39: 3 | G39: 20101012401 | H39: 1 | I39: A | J39: 管理岗位 | K39: 从事登记系统开发和维护、数据管理、信息安全等相关工作。 | L39: 否 | M39: 本科及以上 | O39: 信息工程专业、网络工程专业、信息安全专业、网络空间安全专业、数据科学与大数据技术专业、信息管理与信息系统专业、大数据管理与应用专业 | P39: 计算机科学与技术（一级学科）、网络空间安全（一级学科） | Q39: 具有与学历、专业相应的学位 | R39: 贵阳市观山湖区诚信腾祥.迈腾国际路二期B1 | S39: 文慧 0851-84855301
G40: 20101012402 | H40: 1 | I40: A | J40: 管理岗位 | K40: 从事农村宅基地使用权、集体建设用地使用权、土地经营权等不动产登记公共服务及业务管理工作。 | L40: 否 | M40: 本科及以上 | O40: 土地资源管理专业、自然资源登记与管理专业、公共事业管理专业 | P40: 土地资源管理专业、公共管理学科专业 | Q40: 1.具有与学历、专业相应的学位； 2.具有1年及以上基层工作经历的高校毕业生。
G41: 20101012403 | H41: 1 | I41: A | J41: 管理岗位 | K41: 从事林权确权登记等相关工作。 | L41: 否 | M41: 本科及以上 | O41: 林学专业、测绘工程专业、采矿工程专业 | P41: 森林经理学专业、林学学科专业、林业专业、大地测量学与测量工程专业、测绘科学与技术学科专业、采矿工程专业 | Q41: 1.具有与学历、专业相应的学位； 2.具有1年及以上基层工作经历的高校毕业生。
C42: 0125 | D42: 贵阳市自然资源市场管理服务中心 | E42: 全额拨款 | F42: 1 | G42: 20101012501 | H42: 1 | I42: B | J42: 专业技术岗位 | K42: 从事自然资源市场管理的事务性技术性工作，开展国有土地使用权招标、拍卖或者挂牌出让相关工作、国有土地使用权二级市场相关工作、开展自然资源分等定级及价格评估工作、组织开展自然资源资产价值评估和资产核算工作等。 | L42: 是 | M42: 本科及以上 | O42: 自然地理与资源环境专业、人文地理与城乡规划专业、地理信息科学专业、城乡规划专业、测绘工程专业、计算机科学与技术专业、网络工程专业、信息安全专业 | P42: 地理学（一级学科）、测绘科学与技术（一级学科）、计算机科学与技术（一级学科）、信息与通信工程（一级学科）、城乡规划学（一级学科）、城市规划（一级学科）、网络空间安全（一级学科） | Q42: 1.具有与学历、专业相应的学位； 2.定向招聘2026年度高校毕业生。 | R42: 贵阳市云岩区瑞金北路23号，5-6楼 | S42: 杨琦 18684167613
A43: =MAX($A$1:A42)+1 -> 11 | B43: 贵阳市住房和城乡建设局 | C43: 0126 | D43: 贵阳市建筑管理处 | E43: 全额拨款 | F43: 2 | G43: 20101012601 | H43: 1 | I43: B | J43: 专业技术岗位 | K43: 承担建筑工程质量安全监督服务等相关工作。 | L43: 是 | M43: 本科及以上 | O43: 土木工程专业、给排水科学与工程专业、勘查技术与工程专业、交通工程专业、建筑学专业、工程管理专业 | P43: 建筑技术科学专业、结构工程专业、市政工程专业 | Q43: 1.具有2年及以上工作经历； 2.该岗位需要到施工一线对危大工程、起重机械、防高空坠落监督检查，需要攀爬基坑、外脚手架、支模架、起重设备、大型机械等，适合男性报考。 | R43: 贵阳市南明区新华路23号 | S43: 徐彬荣 0851-85826533
G44: 20101012602 | H44: 1 | I44: A | J44: 管理岗位 | K44: 承担建筑市场管理服务、办公室行政管理等相关工作。 | L44: 否 | M44: 本科及以上 | O44: 经济学专业、社会工作专业、汉语言文学专业、秘书学专业、计算机科学与技术专业、行政管理专业、劳动与社会保障专业 | P44: 汉语言文字学专业、行政管理专业、社会保障专业 | Q44: 1.具有与学历、专业相应的学位； 2.具有2年及以上工作经历； 3.中共党员（含预备党员）。
C45: 0127 | D45: 贵阳市城市建设档案馆 | E45: 全额拨款 | F45: 1 | G45: 20101012701 | H45: 1 | I45: B | J45: 专业技术岗位 | K45: 从事档案数字化、档案管理及其他工作。 | L45: 是 | M45: 本科及以上 | O45: 档案学专业、图书馆学专业、信息资源管理专业 | P45: 档案学专业、情报学专业、图书情报与档案管理学专业 | Q45: 1.具有与学历、专业相应的学位； 2.具有1年及以上基层工作经历的高校毕业生。 | R45: 贵阳市云岩区半边街138号 | S45: 李梅 0851-86768880
C46: 0128 | D46: 贵阳市工程设计质量监督站 | E46: 自收自支 | F46: 1 | G46: 20101012801 | H46: 1 | I46: B | J46: 专业技术岗位 | K46: 从事会计、财务管理工作。 | L46: 是 | M46: 本科及以上 | O46: 会计学专业、财务管理专业、审计学专业 | P46: 会计（一级学科）、审计（一级学科） | Q46: 1.具有与学历、专业相应的学位； 2.中共党员（含预备党员）； 3.具有3年及以上财务工作经历。 | R46: 贵阳市观山湖区诚信路西侧腾祥·迈德国际B2栋4楼 | S46: 石倩 18685035959
C47: 0129 | D47: 贵阳市房屋使用安全管理中心 | E47: 差额补贴 | F47: 1 | G47: 20101012901 | H47: 1 | I47: B | J47: 专业技术岗位 | K47: 开展城市房屋安全管理及城市危旧房改造等相关工作。 | L47: 是 | M47: 本科及以上 | O47: 土木工程专业、智能建造专业、工程管理专业 | P47: 结构工程专业、岩土工程专业 | Q47: 1.具有与学历、专业相应的学位； 2.定向招聘2026年度高校毕业生； 3.该岗位需要到一线开展房屋使用安全检查和城市危旧房改造施工现场检查及应急值班值守和应急处置等相关工作，适合男性报考。 | R47: 贵阳市云岩区中华北路18号银海大厦南四楼 | S47: 车昊 13985545577
C48: 0130 | D48: 贵阳市住房保障中心 | E48: 全额拨款 | F48: 1 | G48: 20101013001 | H48: 1 | I48: B | J48: 专业技术岗位 | K48: 负责落实国家、省市保障房建设管理政策；负责项目建设跟踪管理；负责督促指导保障房运营管理。 | L48: 是 | M48: 本科及以上 | O48: 土木工程专业、工程管理专业、工程造价专业 | P48: 工程管理（一级学科）、土木工程（一级学科） | Q48: 1.具有与学历、专业相应的学位； 2.具有2年及以上相关工作经历； 3.该岗位需要到施工一线对项目建设，施工管理，手续办理，安全监督，防高空坠落监督检查，需要攀爬基坑，进入楼栋检查等，适合男性报考。 | R48: 贵阳市云岩区中华中路178号燃气大厦10楼 | S48: 罗黎 0851-85814932
C49: 0131 | D49: 贵阳市房地产交易管理中心 | E49: 自收自支 | F49: 2 | G49: 20101013101 | H49: 1 | I49: B | J49: 专业技术岗位 | K49: 从事房产测绘成果应用审核及地理信息系统数据维护相关工作。 | L49: 否 | M49: 本科及以上 | O49: 测绘工程专业、遥感科学与技术专业、建筑学专业 | P49: 建筑学（一级学科）、测绘科学与技术（一级学科） | Q49: 1.中共党员（含预备党员）； 2.以本科学历报考的，要求不低于2年测绘相关工作或建筑规划设计相关工作经历，以研究生学历报考的，无工作经历要求； 3.具有与学历、专业相应的学位。 | R49: 贵阳市南明区都司高架桥路39号 | S49: 安明梅 15117490534
G50: 20101013102 | H50: 1 | I50: A | J50: 管理岗位 | K50: 负责单位房产档案的规范化管理，包括档案的收集、整理、数字化、保管、利用及安全维护，确保档案完整性、准确性与保密性，为业务部门提供高效档案查询支持。 | L50: 否 | M50: 本科及以上 | O50: 档案学专业、图书馆学专业、信息资源管理专业 | P50: 档案学专业、情报学专业、图书情报与档案管理学专业 | Q50: 1..中共党员（含预备党员）； 2.具有与学历、专业相应的学位； 3具有1年及以上基层工作经历的高校毕业生。
C51: 0132 | D51: 贵阳市燃气管理服务中心 | E51: 全额拨款 | F51: 1 | G51: 20101013201 | H51: 1 | I51: B | J51: 专业技术岗位 | K51: 从事财务管理相关工作。 | L51: 是 | M51: 本科及以上 | O51: 会计学专业、财务管理专业、审计学专业 | P51: 会计（一级学科）、审计（一级学科） | Q51: 1.中共党员（含预备党员）； 2.具有初级及以上会计专业技术资格； 3.具有与学历、专业相应的学位； 4.具有1年及以上基层工作经历的高校毕业生。 | R51: 贵阳市云岩区中华中路166号燃气大厦12楼 | S51: 姚岑怡 0851-85834044
C52: 0133 | D52: 贵阳市建设工程消防设计审查验收服务中心 | E52: 全额拨款 | F52: 1 | G52: 20101013301 | H52: 1 | I52: B | J52: 专业技术岗位 | K52: 承担建设工程消防设计审查验收服务等相关工作。 | L52: 是 | M52: 本科及以上 | O52: 建筑环境与能源应用工程专业、给排水科学与工程专业、建筑电气与智能化专业、消防工程专业 | P52: 结构工程专业； 供热、供燃气、通风及空调工程专业 | Q52: 1.具有与学历、专业相应的学位； 2.具有3年及以上相关工作经历。 | R52: 贵阳市观山湖区中天会展城SOHO商务区G座 | S52: 聂玉林 0851-82238651
A53: =MAX($A$1:A52)+1 -> 12 | B53: 贵阳市交通委员会 | C53: 0134 | D53: 贵阳市交通运输行业党建服务中心 | E53: 全额拨款 | F53: 1 | G53: 20101013401 | H53: 1 | I53: A | J53: 管理岗位 | K53: 从事纪检相关工作。 | L53: 否 | M53: 本科及以上 | O53: 法学专业、司法警察学专业、纪检监察专业 | P53: 法学（一级学科） 法律（一级学科） | Q53: 1.中共党员（含预备党员）； 2.具有与学历、专业相应的学位。 | R53: 贵阳市观山湖区金融城7号楼13层 | S53: 杨再敏 19117792015
C54: 0135 | D54: 贵阳市邮政业安全服务中心 | E54: 全额拨款 | F54: 2 | G54: 20101013501 | H54: 1 | I54: A | J54: 管理岗位 | K54: 从事邮政业安全管理相关工作。 | L54: 否 | M54: 本科及以上 | O54: 安全工程专业、邮政工程专业、交通运输专业、软件工程专业 | P54: 安全科学与工程（一级学科）、交通运输（一级学科） | Q54: 1.具有与学历、专业相应的学位； 2.具有1年及以上基层工作经历的高校毕业生。 | R54: 贵阳市观山湖区龙滩坝路迈德国际A3栋1201 | S54: 王迪 18708628139
D55: 贵阳市邮政业安全服务中心 | E55: 全额事业单位 | G55: 20101013502 | H55: 1 | I55: A | J55: 管理岗位 | K55: 从事行业管理与申诉投诉相关工作。 | L55: 否 | M55: 本科及以上 | O55: 法学专业、社会学专业、社会工作专业、公共事业管理专业 | P55: 法学（一级学科）、社会学（一级学科）、社会工作（一级学科） | Q55: 具有与学历、专业相应的学位 | R55: 贵阳市观山湖区龙滩坝路迈德国际A3栋1201 | S55: 王迪 18708628139
C56: 0136 | D56: 贵阳市交通基础设施建设服务中心 | E56: 全额拨款 | F56: 1 | G56: 20101013601 | H56: 1 | I56: B | J56: 专业技术岗位 | K56: 负责市属公路、水路等交通基础设施建设技术服务工作。 | L56: 否 | M56: 本科及以上 | O56: 道路桥梁与渡河工程专业、城乡规划专业、土木工程专业、智能建造专业 、交通工程专业 | P56: 土木工程（一级学科）、 城乡规划学（一级学科）、 交通运输规划与管理专业 | Q56: 1.具有与学历、专业相对应的学位； 2.定向招聘2026年度高校毕业生。 | R56: 贵阳市观山湖区金融城7号楼12楼 | S56: 胡醒 13595139384
C57: 0137 | D57: 贵阳市交通运输服务中心 | E57: 全额拨款 | F57: 2 | G57: 20101013701 | H57: 1 | I57: A | J57: 管理岗位 | K57: 从事交通运输服务及保障工作。 | L57: 否 | M57: 本科及以上 | O57: 交通运输类（一级学科） | P57: 交通运输（一级学科） | Q57: 1.具有与学历、专业相对应的学位； 2.定向招聘2026年度高校毕业生。 | R57: 贵阳市观山湖区金融城7号楼13层 | S57: 陈钥涵 13984366772
D58: 贵阳市交通运输服务中心 | E58: 事业单位 | G58: 20101013702 | H58: 1 | I58: A | J58: 管理岗位 | K58: 从事交通运输法律服务相关工作。 | L58: 否 | M58: 本科及以上 | O58: 法学类（一级学科） | P58: 法学（一级学科）、法律（一级学科） | Q58: 1.具有与学历、专业相对应的学位； 2.定向招聘2026年度高校毕业生。 | R58: 贵阳市观山湖区金融城7号楼13层 | S58: 陈钥涵 13984366772
A59: =MAX($A$1:A58)+1 -> 13 | B59: 贵阳市水务管理局 | C59: 0138 | D59: 贵阳市水旱灾害防御技术服务中心 | E59: 全额拨款 | F59: 1 | G59: 20101013801 | H59: 1 | I59: B | J59: 专业技术岗位 | K59: 从事水旱灾害防御技术工作。 | L59: 否 | M59: 本科及以上 | O59: 水利水电工程专业、水文与水资源工程专业、智慧水利专业 | P59: 水利工程（一级学科） | Q59: 具有与学历、专业相应的学位 | R59: 贵阳市南明区市南路36号 | S59: 汪文超 13078561459
A60: =MAX($A$1:A59)+1 -> 14 | B60: 贵阳市文化和旅游局 | C60: 0139 | D60: 贵阳市图书馆 | E60: 全额拨款 | F60: 2 | G60: 20101013901 | H60: 1 | I60: B | J60: 专业技术岗位 | K60: 从事脚本撰写、阅读推广文案编写，阅读推广活动策划、组织实施、宣传等相关工作。 | L60: 否 | M60: 本科及以上 | O60: 新闻传播学类（一级学科）、中国语言文学类（一级学科） | P60: 新闻传播学（一级学科）、中国语言文学（一级学科） | Q60: 1.中共党员（含预备党员）； 2.具有与学历、专业相应的学位； 3.具有1年及以上基层工作经历的高校毕业生。 | R60: 贵阳市南明区青云路201号 | S60: 汪洋 0851-85983863
G61: 20101013902 | H61: 1 | I61: B | J61: 专业技术岗位 | K61: 从事馆内网络建设管理、系统维护等工作。 | L61: 否 | M61: 本科及以上 | O61: 计算机类（一级学科）、电子信息类（一级学科） | P61: 计算机科学与技术（一级学科）、信息与通信工程（一级学科） | Q61: 1.中共党员（含预备党员）； 2.具有与学历、专业相应的学位； 3.定向招聘2026年度高校毕业生。 | R61: 贵阳市南明区青云路201号
A62: =MAX($A$1:A61)+1 -> 15 | B62: 贵阳市退役军人事务局 | C62: 0140 | D62: 贵阳市退役军人服务中心 | E62: 全额拨款 | F62: 1 | G62: 20101014001 | H62: 1 | I62: B | J62: 专业技术岗位 | K62: 从事会计工作及办公室日常工作。 | L62: 否 | M62: 本科及 以上 | O62: 财政学类（一级学科）、金融学类（一级学科）、经济学类（一级学科）、会计学专业、财务管理专业、审计学专业 | P62: 经济学（一级学科）、会计学专业、会计（专硕）、审计（专硕） | Q62: 1.具有与学历、专业相应的学位； 2.具有初级及以上会计专业技术资格。 | R62: 贵阳市观山湖区金融城7号楼 | S62: 张老师 0851-84398928
A63: =MAX($A$1:A62)+1 -> 16 | B63: 贵阳市市场监督管理局 | C63: 0141 | D63: 贵阳市食品药品检验检测中心 | E63: 全额拨款 | F63: 1 | G63: 20101014101 | H63: 1 | I63: B | J63: 专业技术岗位 | K63: 从事药品检验工作。 | L63: 是 | M63: 本科及以上 | O63: 药学专业、药物分析专业、中药学专业 | P63: 药物化学专业、药物分析学专业、微生物与生化药学专业 | Q63: 1.具有与学历、专业相应的学位； 2.具有1年及以上基层工作经历的高校毕业生。 | R63: 贵阳市观山湖区云潭南路609号 | S63: 王皓 0851-84827529
A64: =MAX($A$1:A63)+1 -> 17 | B64: 贵阳市体育局 | C64: 0142 | D64: 贵阳市体育中学 | E64: 全额拨款 | F64: 2 | G64: 20101014201 | H64: 1 | I64: B | J64: 专业技术岗位 | K64: 承担射击项目竞训工作。 | L64: 是 | M64: 本科及以上 | O64: 运动训练专业、体育教育专业、体能训练专业 | P64: 体育专业、体育教学专业、运动训练专业 | Q64: 1.具有专业队训练经历3年以上的已退役运动员； 2.持有射击一级运动员及以上证书； 3.取得全国及以上射击项目赛事前八名成绩。 | R64: 贵阳市云岩区东新路32号 | S64: 代纯 0851-85610934
G67: 20101014202 | H67: 1 | I67: B | J67: 专业技术岗位 | K67: 承担射箭项目竞训工作。 | L67: 是 | M67: 本科及以上 | O67: 运动训练专业、体育教育专业、体能训练专业 | P67: 体育专业、体育教学专业、运动训练专业 | Q67: 1.具有专业队训练经历3年以上的已退役运动员； 2.持有射箭一级运动员及以上证书； 3.取得全国及以上射箭项目赛事前八名成绩。
P68: 运动训练
C70: 0143 | D70: 贵阳市人民体育场 | E70: 全额拨款 | F70: 1 | G70: 20101014301 | H70: 1 | I70: B | J70: 专业技术岗位 | K70: 负责艺术体操项目的选拔、训练、比赛、输送等相关工作。 | L70: 是 | M70: 本科及以上 | O70: 运动训练专业、体育教育专业、社会体育指导与管理专业 | P70: 体育学（一级学科）、体育（一级学科） | Q70: 1.持有艺术体操一级运动员及以上证书； 2.取得全国运动会、全国锦标赛、全国冠军赛及以上艺术体操项目赛事前八名成绩。 | R70: 贵阳市云岩区北京路27号 | S70: 潘旻 15685900789
C72: 0144 | D72: 贵阳市体育训练馆 | E72: 全额拨款 | F72: 3 | G72: 20101014401 | H72: 1 | I72: B | J72: 专业技术岗位 | K72: 承担全市乒乓球项目竞技训练及赛事活动组织。 | L72: 是 | M72: 本科及以上 | O72: 运动训练专业、体育教育专业、社会体育指导与管理专业 | P72: 体育教育训练学专业、运动训练专业、社会体育指导专业 | Q72: 1.持有乒乓球一级运动员及以上证书； 2.高考按照乒乓球高水平运动员录取进校的可不受专业限制（需提供相关证明）。 | R72: 贵阳市云岩区北京路27号 | S72: 张 卓 13078570947 吴靖康 13124601313
G74: 20101014402 | H74: 1 | I74: B | J74: 专业技术岗位 | K74: 承担举重项目竞训工作。 | L74: 是 | M74: 本科及以上 | O74: 运动训练专业、体育教育专业、体能训练专业 | P74: 体育专业、体育教学专业、运动训练专业 | Q74: 1.具有专业队训练经历3年以上的已退役运动员； 2.持有举重一级运动员及以上证书； 3.取得全国及以上举重项目赛事前八名成绩。
G77: 20101014403 | H77: 1 | I77: A | J77: 管理岗位 | K77: 承担体育产业、经济及相关行政管理。 | L77: 否 | M77: 本科及以上 | O77: 体育经济与管理专业、休闲体育专业、社会体育指导与管理专业 | P77: 体育教育训练学专业、竞赛组织专业、社会体育指导专业 | Q77: 具有一年及以上基层工作经历的高校毕业生。
C78: 0145 | D78: 贵阳市市民健身中心 | E78: 全额拨款 | F78: 1 | G78: 20101014501 | H78: 1 | I78: B | J78: 专业技术岗位 | K78: 贵阳市排球项目训练、赛事指导及运动员管理等相关工作。 | L78: 是 | M78: 本科及以上 | O78: 运动训练专业、体育教育专业、运动人体科学专业 | P78: 体育教学专业、运动训练专业、体育教育训练学专业 | Q78: 1.持有排球一级运动员及以上证书； 2.取得全国运动会、全国锦标赛及以上排球项目赛事前六名成绩。 | R78: 贵阳市云岩区北京路104号 | S78: 柴霞 13639006438
A80: =MAX($A$1:A79)+1 -> 18 | B80: 贵阳市统计局 | C80: 0146 | D80: 贵阳市经济运行监测中心 | E80: 全额拨款 | F80: 1 | G80: 20101014601 | H80: 1 | I80: B | J80: 专业技术岗位 | K80: 经济运行监测、统计资料管理。 | L80: 否 | M80: 本科及以上 | O80: 经济学类（一级学科）、 数学类（一级学科）、 统计学类（一级学科） | P80: 应用经济学(一级学科)、 数学（一级学科）、 统计学（一级学科） | Q80: 1.具有与学历、专业相对应的学位； 2.定向招聘2026年度高校毕业生。 | R80: 贵阳市观山湖区市级行政中心市政府大楼 | S80: 陈小爽 0851-87989120
A81: =MAX($A$1:A80)+1 -> 19 | B81: 贵阳市国防动员办公室 | C81: 0147 | D81: 贵阳市人防工程管理服务中心 | E81: 全额拨款 | F81: 1 | G81: 20101014701 | H81: 1 | I81: B | J81: 专业技术岗位 | K81: 负责人防工程的日常维护、功能保养技术服务指导，为人防工程监督管理工作提供技术保障，不断提升专业水平和服务效能。 | L81: 否 | M81: 本科及以上 | O81: 土木类（一级学科）、建筑类（一级学科）、计算机类（一级学科） | P81: 计算机科学与技术类（一级学科）、建筑学（一级学科）、土木工程类（一级学科） | Q81: 无 | R81: 贵阳市云岩区北新区路100号 | S81: 杨本席 13628512425
A82: =MAX($A$1:A81)+1 -> 20 | B82: 贵阳市大数据发展管理局 | C82: 0148 | D82: 贵阳市大数据应用服务中心 | E82: 全额拨款 | F82: 3 | G82: 20101014801 | H82: 1 | I82: B | J82: 专业技术岗位 | K82: 从事大数据相关工作。 | L82: 否 | M82: 本科及以上 | O82: 人工智能专业、计算机科学与技术专业、网络工程专业、数据科学与大数据技术专业 | P82: 计算机科学与技术（一级学科）、软件工程（一级学科） | Q82: 1.具有与学历、专业相应的学位； 2.具有人社部、工信部颁发的计算机技术与软件专业技术资格证书（初级及以上）。 | R82: 贵阳市观山湖区市级行政中心二期D区三楼 | S82: 曾臻 0851-87988116
B83: 贵阳市大数据发展管理局 | D83: 贵阳市大数据应用服务中心 | E83: 全额拨款 | G83: 20101014802 | H83: 2 | I83: B | J83: 专业技术岗位 | K83: 从事大数据相关工作。 | L83: 否 | M83: 本科及以上 | O83: 人工智能专业、计算机科学与技术专业、网络工程专业、数据科学与大数据技术专业 | P83: 计算机科学与技术（一级学科）、软件工程（一级学科） | Q83: 1.具有与学历、专业相应的学位； 2.具有人社部、工信部颁发的计算机技术与软件专业技术资格证书（初级及以上）； 3.具有1年及以上基层工作经历的高校毕业生。 | R83: 贵阳市观山湖区市级行政中心二期D区三楼 | S83: 曾臻：0851-87988116
A84: =MAX($A$1:A83)+1 -> 21 | B84: 贵阳市林业局 | C84: 0149 | D84: 贵阳市长坡岭国有林场 | E84: 全额拨款 | F84: 1 | G84: 20101014901 | H84: 1 | I84: B | J84: 专业技术 岗位 | K84: 负责林场（公园）内工程造价、管理、计算金融相关工作。 | L84: 否 | M84: 本科及以上 | O84: 工程管理专业、工程造价专业、金融学专业 | P84: 农林经济管理专业、林业经济管理专业、工程管理专业 | Q84: 1.定向招聘2026年度高校毕业生; 2.具有与学历、专业相应的学位。 | R84: 贵阳市白云区粑粑坳 | S84: 许悦 13984349860
C85: 0150 | D85: 贵阳市林业产业发展中心 | E85: 全额拨款 | F85: 1 | G85: 20101015001 | H85: 1 | I85: A | J85: 管理岗位 | K85: 承担林业产业经济发展规划、统计报告撰写及信息报送等工作。 | L85: 否 | M85: 本科及以上 | O85: 资源与环境经济学专业、国民经济管理专业、商务经济学专业 | P85: 产业经济学专业、农林经济管理专业、林业经济管理专业 | Q85: 1.中共党员（含预备党员）； 2.具有与学历、专业相应的学位； 3.具有1年及以上基层工作经历的高校毕业生。 | R85: 贵阳市南明区花溪大道北段城市印象办公楼十楼 | S85: 熊莉 0851-85966411
C86: 0151 | D86: 贵阳市顺海国有林场 | E86: 全额拨款 | F86: 1 | G86: 20101015101 | H86: 1 | I86: A | J86: 管理岗位 | K86: 公文写作、信息宣传、媒体平台内容服务、会议组织及记录等工作。 | L86: 否 | M86: 本科及以上 | O86: 汉语言文学专业、 汉语言专业、 新闻学专业 | P86: 语言学及应用语言学专业、汉语言文字学专业、新闻传播学（一级学科） | Q86: 具有与学历、专业相应的学位。 | R86: 贵阳市乌当区新添大道北段粮技校路口 | S86: 罗利君 13017479492
C87: 0152 | D87: 贵阳市林长制工作服务中心 | E87: 全额拨款 | F87: 2 | G87: 20101015201 | H87: 1 | I87: A | J87: 管理岗位 | K87: 负责单位宣传、公文及行政管理等相关工作。 | L87: 否 | M87: 本科及以上 | O87: 新闻学专业、传播学专业、汉语言文学专业 | P87: 新闻学专业、传播学专业、汉语言文字学专业 | Q87: 1.具有1年及以上基层工作经历的高校毕业生； 2.具有与学历、专业相应的学位。 | R87: 贵阳市南明区花溪大道北段275号 | S87: 汪岚 0851-85962409
G88: 20101015202 | H88: 1 | I88: B | J88: 专业技术 岗位 | K88: 负责林草信息化科技赋能及森林资源调查、监测、管理等相关工作。 | L88: 否 | M88: 本科及以上 | O88: 计算机科学与技术专业、信息安全专业、智能科学与技术专业 | P88: 计算机技术专业、大数据技术与工程专业、网络与信息安全专业 | Q88: 1.定向招聘2026年度高校毕业生; 2.具有与学历、专业相应的学位。
C89: 0153 | D89: 贵阳阿哈湖国家湿地公园管理处 | E89: 全额拨款 | F89: 3 | G89: 20101015301 | H89: 1 | I89: A | J89: 管理岗位 | K89: 负责湿地科普宣教中心运营，自然教育活动以及各类科普宣教活动策划、宣传环境布置、宣传培训、撰写宣传新闻稿件等日常工作。 | L89: 否 | M89: 本科及以上 | O89: 新闻学专业、传播学专业、广告学专业、网络与新媒体专业 | P89: 新闻传播学专业、新闻学专业、传播学专业、新闻传播学学科专业 | Q89: 具有与学历、专业相应的学位。 | R89: 贵阳市南明区小车河路6号 | S89: 刘文媛 13984177199
G90: 20101015302 | H90: 1 | I90: B | J90: 专业技术 岗位 | K90: 负责公园内森林资源调查或森林资源监测，分析和评价森林资源的数量、质量、空间分布、动态变化及其与环境相互关系的专业性工作。 | L90: 否 | M90: 本科及以上 | O90: 林业工程类（一级学科）、林学专业、植物保护专业 | P90: 林业工程（一级学科）、林业专业、植物学专业、野生动植物保护与利用专业 | Q90: 1.具有1年及以上基层工作经历的高校毕业生； 2.因长期野外工作，适宜男性报考； 3.具有与学历、专业相应的学位。
G91: 20101015303 | H91: 1 | I91: B | J91: 专业技术 岗位 | K91: 负责公园内经营管理项目的管理，各类资产价值的分析、估算。制定公园营销策略，优化公园运营模式，推动湿地公园价值转化等工作。 | L91: 否 | M91: 本科及以上 | O91: 金融学专业、金融工程专业、投资学专业 | P91: 产业经济学专业、农林经济管理专业、林业经济管理专业 | Q91: 1.具有1年及以上基层工作经历的高校毕业生； 2.具有与学历、专业相应的学位。
C92: 0154 | D92: 贵阳市天然林和公益林保护修复中心 | E92: 全额拨款 | F92: 1 | G92: 20101015401 | H92: 1 | I92: B | J92: 专业技术 岗位 | K92: 天然林和公益林保护管理工作。 | L92: 否 | M92: 本科及以上 | O92: 林学类（一级学科） | P92: 森林培育专业、森林保护学专业、森林经理学专业 | Q92: 1.具有与学历、专业相应的学位； 2.具有1年及以上基层工作经历的高校毕业生； 2.因长期野外工作，适宜男性报考。 | R92: 贵阳市花溪大道北段308号林业综合大楼8楼 | S92: 王名芹 13595070829
A93: =MAX($A$1:A92)+1 -> 22 | B93: 贵阳市粮食和物资储备局 | C93: 0155 | D93: 贵阳市军粮供应站 | E93: 全额拨款 | F93: 1 | G93: 20101015501 | H93: 1 | I93: B | J93: 专业技术岗位 | K93: 从事人事等相关工作。 | L93: 否 | M93: 研究生 | P93: 管理学(学科门类)、法学(学科门类) | Q93: 1.中共党员（含预备党员）； 2.具有与学历、专业相应的学位。 | R93: 贵阳市南明区花溪大道中段76号 | S93: 唐林龙 李田田 0851-85168440
A94: =MAX($A$1:A93)+1 -> 23 | B94: 贵阳市投资促进局 | C94: 0156 | D94: 贵阳市人民政府驻武汉办事处 | E94: 全额拨款 | F94: 1 | G94: 20101015601 | H94: 1 | I94: A | J94: 管理岗位 | K94: 从事招商引资、投资促进、产业发展研究等工作。 | L94: 否 | M94: 本科及以上 | O94: 经济学类(一级学科）、经济与贸易类(一级学科）、金融学专业、管理科学与工程类(一级学科）、工商管理类(一级学科）、计算机科学与技术专业、电子信息类(一级学科） | P94: 不限专业 | Q94: 1.具有与学历、专业相对应的学位； 2.具有1年及以上基层工作经历的高校毕业生。 | R94: 湖北省武汉市武昌区徐东大道迎宾华府B区1栋31层6号 | S94: 闫徐 15071013149
A95: =MAX($A$1:A94)+1 -> 24 | B95: 贵阳市人民政府 | C95: 0157 | D95: 贵阳职业技术学院 | E95: 全额拨款 | F95: 10 | G95: 20101015701 | H95: 2 | I95: C | J95: 教师岗位 | K95: 承担动车组检修技术专业、铁道机车运用与维护专业核心课程教学，并承担实训室管理工作。 | L95: 是 | M95: 研究生 | P95: 电气工程（一级学科）、电子科学与技术（一级学科）、控制科学与工程（一级学科）、信息与通信工程（一级学科）、计算机科学与技术（一级学科）、机械工程（一级学科） | Q95: 具有与学历、专业相应的学位 | R95: 贵阳市观山湖区云潭南路609号 | S95: 岑老师 0851-87981943
G96: 20101015702 | H96: 1 | I96: C | J96: 教师岗位 | K96: 承担现代物流管理专业理论与实训教学工作，并承担一定的行政管理工作。 | L96: 是 | M96: 研究生 | P96: 物流管理专业、物流工程专业、物流与供应链管理专业 | Q96: 1.具有与学历、专业相应的学位； 2.具有1年以上物流相关工作经历。 | R96: 贵阳市观山湖区云潭南路609号 | S96: 岑老师 0851-87981943
G97: 20101015703 | H97: 1 | I97: C | J97: 教师岗位 | K97: 承担导游、研学旅行、旅游规划、民宿方面的教学、实训和专业建设等工作，并承担一定的行政管理工作。 | L97: 是 | M97: 研究生 | P97: 旅游管理专业、生态旅游学专业、旅游地理与旅游规划专业 | Q97: 1.具有与学历、专业相应的学位； 2.具有导游资格证； 3.具有1年及以上的民宿管理工作经历。 | R97: 贵阳市观山湖区云潭南路609号 | S97: 岑老师 0851-87981943
G98: 20101015704 | H98: 1 | I98: C | J98: 教师岗位 | K98: 承担药学专业教学及科研等工作，并承担一定的行政管理工作。 | L98: 是 | M98: 研究生 | P98: 药学（一级学科） 中药学（一级学科） | Q98: 1.具有与学历、专业相应的学位； 2.具备执业药师资格证书； 3.具有2年及以上医药企业相关工作经历。 | R98: 贵阳市观山湖区云潭南路609号 | S98: 岑老师 0851-87981943
G99: 20101015705 | H99: 2 | I99: C | J99: 教师岗位 | K99: 承担思政课相关课程教学及管理工作；思政课教师研修基地、大中小学思政课一体化研修中心等行政管理工作。 | L99: 是 | M99: 研究生 | P99: 马克思主义基本原理专业、 马克思主义发展史专业、 马克思主义中国化研究专业、 国外马克思主义研究专业、 思想政治教育专业、 中国近现代史基本问题研究专业 | Q99: 1.中共党员（含预备党员）； 2.具有与学历、专业相应的学位； 3.定向招聘2026年度高校毕业生。 | R99: 贵阳市观山湖区云潭南路609号 | S99: 岑老师 0851-87981943
G100: 20101015706 | H100: 1 | I100: C | J100: 教师岗位 | K100: 承担体育课程教学，并能承担一定的行政管理工作。 | L100: 是 | M100: 研究生 | P100: 学科教育（体育）专业、运动训练专业、体育教学专业、体育教育训练学专业 | Q100: 具有与学历、专业相应的学位。 | R100: 贵阳市观山湖区云潭南路609号 | S100: 岑老师 0851-87981943
G101: 20101015707 | H101: 1 | I101: C | J101: 教师岗位 | K101: 承担数学课程教学，并能承担一定的行政管理工作。 | L101: 是 | M101: 研究生 | P101: 数学（一级学科）、学科教学（数学）专业 | Q101: 1.具有与学历、专业相应的学位； 2.定向招聘2026年度高校毕业生。 | R101: 贵阳市观山湖区云潭南路609号 | S101: 岑老师 0851-87981943
G102: 20101015708 | H102: 1 | I102: B | J102: 专业技术岗位 | K102: 承担机房日常管理、机房硬件设备维护、机房软件与系统管理及实训教学相关工作。 | L102: 否 | M102: 研究生 | P102: 电子科学与技术（一级学科）、软件工程（一级学科）、计算机科学与技术（一级学科）、信息与通信工程（一级学科） | Q102: 具有与学历、专业相应的学位。 | R102: 贵阳市观山湖区云潭南路609号 | S102: 岑老师 0851-87981943
A103: =MAX($A$1:A102)+1 -> 25 | B103: 共青团贵阳市委 | C103: 0158 | D103: 贵阳市青少年宫 | E103: 全额拨款 | F103: 1 | G103: 20101015801 | H103: 1 | I103: B | J103: 专业技术岗位 | K103: 从事青少年校外教育有关微电影拍摄、新媒体运营、活动策划相关工作及其他教研、教务等综合性工作。 | L103: 否 | M103: 本科及以上 | O103: 新闻传播学类（一级学科）、 教育学类（一级学科） | P103: 新闻传播学（一级学科） 、教育学（一级学科） | Q103: 具有与学历、专业相应的学位。 | R103: 贵阳市观山湖区诚信南路399号 | S103: 唐壮举 13765820315
A104: =MAX($A$1:A103)+1 -> 26 | B104: 云岩区信访局 | C104: 0201 | D104: 云岩区群众工作中心 | E104: 全额拨款 | F104: 2 | G104: 20102020101 | H104: 1 | I104: A | J104: 管理岗位 | K104: 负责群众接待登记和引导工作，做好政策解释。协助处理信访信件及相关文书工作。 | L104: 否 | M104: 本科及 以上 | O104: 法学专业、纪检监察专业、国家安全学专业 | P104: 法学专业、纪检监察学专业、法律专业 | Q104: 1.中共党员（含预备党员）； 2.具有与学历、专业相应的学位； 3.具有2年及以上基层工作经历。 | R104: 贵阳市云岩区渔安新城D组团4栋负三层1号 | S104: 雷蕊 0851-88238911
G105: 20102020102 | H105: 1 | I105: A | J105: 管理岗位 | K105: 从事财务相关工作。 | L105: 否 | M105: 本科及 以上 | O105: 会计学专业、审计学专业、财务管理专业 | P105: 会计专业、审计专业、 公共管理学专业 | Q105: 1.中共党员（含预备党员）； 2.具有与学历、专业相应的学位； 3.具有初级及以上会计专业技术资格； 4.具有2年及以上相关财务工作经历。 | R105: 贵阳市云岩区渔安新城D组团4栋负三层1号 | S105: 雷蕊 0851-88238911
A106: =MAX($A$1:A105)+1 -> 27 | B106: 中共云岩区委社会工作部 | C106: 0202 | D106: 云岩区社会工作服务中心（云岩区志愿服务中心） | E106: 全额拨款 | F106: 2 | G106: 20102020201 | H106: 1 | I106: A | J106: 管理岗位 | K106: 从事办公室综合管理及财务工作。 | L106: 否 | M106: 本科及 以上 | O106: 汉语言文学专业、新闻学专业、会计学专业 | P106: 汉语言文字学专业、新闻学专业、会计学专业 | Q106: 具有与学历、专业相应的学位。 | R106: 贵阳市云岩区新添大道南段299号 | S106: 朱米芬 0851-86610708
G107: 20102020202 | H107: 1 | I107: A | J107: 管理岗位 | K107: 从事社会工作服务保障、社会工作专业人才队伍建设等相关工作。 | L107: 否 | M107: 本科及 以上 | O107: 社会学专业、社会工作专业、法学专业 | P107: 社会学专业、民商法学专业、经济法学专业、诉讼法学专业 | Q107: 具有与学历、专业相应的学位 | R107: 贵阳市云岩区新添大道南段299号 | S107: 朱米芬 0851-86610708
A108: =MAX($A$1:A107)+1 -> 28 | B108: 云岩区发展和改革局 | C108: =MAX($C$8:C107)+1 -> 0203 | D108: 云岩区投资项目建设服务中心 | E108: 全额拨款 | F108: 1 | G108: 20102020301 | H108: 1 | I108: A | J108: 管理岗位 | K108: 从事固定资产投资项目、重大工程和重点项目管理与监督，服务重点项目建设。 | L108: 否 | M108: 本科及以上 | O108: 不限 | P108: 不限 | Q108: 1.中共党员（含预备党员）； 2.具有与学历、专业相应的学位； 3.定向招聘基层项目人员。 | R108: 贵阳市云岩区新添大道南段229号 | S108: 张雪 0851-86679028
A109: =MAX($A$1:A108)+1 -> 29 | B109: 云岩区民政局 | C109: =MAX($C$8:C108)+1 -> 0204 | D109: 云岩区婚姻登记服务中心 | E109: 全额拨款 | F109: 1 | G109: 20102020401 | H109: 1 | I109: A | J109: 管理岗位 | K109: 主要负责民政婚姻、法律事务、法律审核、执法辅助等工作；协助局机关从事相关行业安全生产管理、法治政府建设等工作。 | L109: 否 | M109: 本科及 以上 | O109: 法学专业、知识产权专业、信用风险管理与法律防控专业 | P109: 法学（一级学科）、政治学（一级学科）、社会学（一级学科）、马克思主义理论（一级学科） | Q109: 1.具有与学历、专业相应的学位； 2.具有A类法律职业资格证书。 | R109: 贵阳市云岩区未来方舟D12组团 | S109: 刘佳丽 0851-86870423
A110: =MAX($A$1:A109)+1 -> 30 | B110: 云岩区财政局 | C110: =MAX($C$8:C109)+1 -> 0205 | D110: 云岩区金融工作服务中心 | E110: 全额拨款 | F110: 1 | G110: 20102020501 | H110: 1 | I110: A | J110: 管理岗位 | K110: 从事项目绩效管理、预算评审等相关工作。 | L110: 否 | M110: 本科及 以上 | O110: 建筑类（一级学科）、土木类（一级学科） | P110: 土木工程（一级学科）、建筑学（一级学科） | Q110: 1.具有与学历、专业相应的学位； 2.具有造价工程师一级资格证。 | R110: 贵阳市云岩区新添大道南段299号 | S110: 杨文熙 0851-86679310
A111: =MAX($A$1:A110)+1 -> 31 | B111: 云岩区住房和城乡建设局 | C111: =MAX($C$8:C110)+1 -> 0206 | D111: 云岩区房屋征收服务中心 | E111: 全额拨款 | F111: 3 | G111: 20102020601 | H111: 2 | I111: B | J111: 专业技术岗位 | K111: 从事法规宣传、征收方案制定、文书审核等工作。 | L111: 否 | M111: 本科及 以上 | O111: 法学类（一级学科）、社会学类（一级学科） | P111: 法学(一级学科)、社会学（一级学科） | Q111: 1.中共党员（含预备党员）； 2.具有与学历、专业相应的学位。 | R111: 贵阳市云岩区瑞金北路61号-3 | S111: 袁红玉 0851-86838207
G112: 20102020602 | H112: 1 | I112: B | J112: 专业技术岗位 | K112: 从事征收档案管理及维护等工作。 | L112: 否 | M112: 本科及 以上 | O112: 计算机科学与技术专业、软件工程专业、信息管理与信息系统专业 | P112: 不限 | Q112: 1.具有与学历、专业相应的学位； 2.定向招聘2026年度高校毕业生。 | R112: 贵阳市云岩区瑞金北路61号-3 | S112: 袁红玉 0851-86838207
B113: 云岩区住房和城乡建设局 | C113: =MAX($C$8:C112)+1 -> 0207 | D113: 云岩区农村公路养护管理所 | E113: 全额拨款 | F113: 1 | G113: 20102020701 | H113: 1 | I113: A | J113: 管理岗位 | K113: 从事住建领域施工合同的前置性审查、办公室行政事务的管理等工作。 | L113: 否 | M113: 本科及 以上 | O113: 法学(学科门类)、土木类（一级学科）、建筑类（一级学科） | P113: 法学(学科门类)、土木工程（一级学科） 、建筑学（一级学科） | Q113: 1.具有与学历、专业相应的学位； 2.法学类的考生须具有2年及以上从事法学行业的相关工作经历。 | R113: 贵阳市云岩区未来方舟D12组团B栋 | S113: 杨艳红 0851-86823355
C114: =MAX($C$8:C113)+1 -> 0208 | D114: 云岩区建筑工程质量监督站 | E114: 全额拨款 | F114: 1 | G114: 20102020801 | H114: 1 | I114: B | J114: 专业技术岗位 | K114: 从事云岩行政区域内的建设工程招标备案、工程质量监督、工程竣工验收备案以及宣传贯彻落实《贵阳市房屋安全管理条例》等有关房屋安全管理的法律、法规、规章并组织指导、监督全区房屋使用安全管理等工作。 | L114: 否 | M114: 本科及 以上 | O114: 土木类（一级学科）、建筑类（一级学科） | P114: 土木工程（一级学科） 、建筑学（一级学科） | Q114: 具有与学历、专业相应的学位。 | R114: 贵阳市云岩区未来方舟D12组团B栋 | S114: 杨艳红 0851-86823355
A115: =MAX($A$1:A114)+1 -> 32 | B115: 云岩区农业农村局 | C115: =MAX($C$8:C114)+1 -> 0209 | D115: 云岩区动物疫病预防控制中心 | E115: 全额拨款 | F115: 1 | G115: 20102020901 | H115: 1 | I115: A | J115: 管理岗位 | K115: 从事综合协调机关日常事务,起草本单位综合性文稿,负责机关规范性文件合法性检查。 | L115: 否 | M115: 本科及 以上 | O115: 法学（学科门类） | P115: 法学（学科门类） | Q115: 1.具有与学历、专业相应的学位； 2.具有A类法律职业资格证书。 | R115: 贵阳市云岩区未来方舟D12组团 | S115: 邵楠茜 0851-86652182
A116: =MAX($A$1:A115)+1 -> 33 | B116: 云岩区文体广电旅游局 | C116: =MAX($C$8:C115)+1 -> 0210 | D116: 云岩区文化馆 | E116: 全额拨款 | F116: 1 | G116: 20102021001 | H116: 1 | I116: B | J116: 专业技术岗位 | K116: 从事群众文化艺术培训工作。 | L116: 否 | M116: 本科及 以上 | O116: 音乐与舞蹈学类（一级学科）、艺术学理论类（一级学科） | P116: 艺术学理论（一级学科）、音乐与舞蹈学（一级学科） | Q116: 具有与学历、专业相应的学位。 | R116: 贵阳市云岩区新添大道南段299号 | S116: 滕开龙 0851-86610952
A117: =MAX($A$1:A116)+1 -> 34 | B117: 云岩区卫生健康局 | C117: =MAX($C$8:C116)+1 -> 0211 | D117: 云岩区疾病预防控制中心（区卫生监督站） | E117: 全额拨款 | F117: 5 | G117: 20102021101 | H117: 3 | I117: B | J117: 专业技术岗位 | K117: 从事行政处罚案件法制审核、执法程序合法性把关、行政诉讼应诉、执法规范化建设、公共卫生事件应急法律支持、传染病防治法规合规、实验室生物安全法律监管、公共卫生政策研究等相关工作。 | L117: 否 | M117: 本科及以上 | O117: 法学专业、信用风险管理与法律防控专业、纪检监察专业、司法鉴定学专业 | P117: 法学理论专业、宪法学与行政法学专业、刑法学专业、诉讼法学专业 | Q117: 具有与学历、专业相应的学位。 | R117: 贵阳市云岩区半边街53号 | S117: 蒲睿 0851-86766927
G118: 20102021102 | H118: 1 | I118: A | J118: 管理岗位 | K118: 处理单位各类法律问题及事宜、开展合法性审查、协助处理各类纠纷、依法处置各类信访、投诉案件等相关工作。 | L118: 否 | M118: 本科及以上 | O118: 不限 | P118: 不限 | Q118: 1.具有与学历、专业相应的学位； 2.具有A类法律职业资格证书。 | R118: 贵阳市云岩区半边街53号 | S118: 蒲睿 0851-86766927
G119: 20102021103 | H119: 1 | I119: B | J119: 专业技术岗位 | K119: 从事计算机系统及网络维护、计算机及信息技术管理、信息化建设等相关工作。 | L119: 否 | M119: 研究生及以上 | P119: 通信与信息系统专业、计算机软件与理论专业、计算机应用技术专业 | Q119: 1.具有与学历、专业相应的学位； 2.定向招聘2026年度高校毕业生。 | R119: 贵阳市云岩区半边街53号 | S119: 蒲睿 0851-86766927
C120: =MAX($C$8:C119)+1 -> 0212 | D120: 云岩区卫生健康综合服务中心 | E120: 全额拨款 | F120: 2 | G120: 20102021201 | H120: 1 | I120: B | J120: 专业技术岗位 | K120: 从事财务相关工作。 | L120: 否 | M120: 本科及 以上 | O120: 会计学专业、财务管理专业、审计学专业、财政学专业 | P120: 会计学专业、企业管理（含：财务管理、市场营销、人力资源管理）专业、会计（专硕）、审计（专硕）、财政学（含∶税收学）专业 | Q120: 1.具有与学历、专业相应的学位； 2.具有2年及以上财务工作经历。 | R120: 贵阳市云岩区未来方舟D12组团 | S120: 陈子捷 0851-86679036
G121: 20102021202 | H121: 1 | I121: B | J121: 专业技术岗位 | K121: 从事行政处罚决定法制审核及政策法规相关工作。 | L121: 否 | M121: 本科及 以上 | O121: 法学（学科门类） | P121: 法学（学科门类）、 法律（专硕） | Q121: 1.具有与学历、专业相应的学位； 2.具有A类法律职业资格证书。 | R121: 贵阳市云岩区未来方舟D12组团 | S121: 陈子捷 0851-86679036
A122: =MAX($A$1:A121)+1 -> 35 | B122: 云岩区综合行政执法局 | C122: =MAX($C$8:C121)+1 -> 0213 | D122: 云岩区市政工程管理所 | E122: 全额拨款 | F122: 3 | G122: 20102021301 | H122: 1 | I122: A | J122: 管理岗位 | K122: 从事财务等相关工作。 | L122: 否 | M122: 本科及 以上 | O122: 会计学专业、财务管理专业、审计学专业 | P122: 会计学专业、审计学专业、会计（专硕）、审计（专硕） | Q122: 具有与学历、专业相应的学位。 | R122: 贵阳市云岩区鲤鱼西巷12号 | S122: 韩瑶 0851-86518381
G123: 20102021302 | H123: 1 | I123: A | J123: 管理岗位 | K123: 从事人力资源管理等相关工作。 | L123: 否 | M123: 本科及 以上 | O123: 统计学类（一级学科）、工商管理类（一级学科） | P123: 应用经济学（一级学科）、工商管理（一级学科） | Q123: 1.具有与学历、专业相应的学位； 2.定向招聘2026年度高校毕业生。 | R123: 贵阳市云岩区鲤鱼西巷12号 | S123: 韩瑶 0851-86518381
G124: 20102021303 | H124: 1 | I124: B | J124: 专业技术岗位 | K124: 从事市政工程道路及附属设施的施工、维护；园林、园艺工程管理；桥梁及隧道工程管理、施工；排水系统的施工、维护等工作。 | L124: 否 | M124: 本科及 以上 | O124: 土木类（一级学科）、建筑类（一级学科） | P124: 建筑学（一级学科）、 土木工程（一级学科） | Q124: 具有与学历、专业相应的学位。 | R124: 贵阳市云岩区鲤鱼西巷12号 | S124: 韩瑶 0851-86518381
C125: =MAX($C$8:C124)+1 -> 0214 | D125: 云岩区黔灵山公园管理处 | E125: 差额补贴 | F125: 2 | G125: 20102021401 | H125: 1 | I125: A | J125: 管理岗位 | K125: 从事公园综合事务工作。 | L125: 否 | M125: 本科及以上 | O125: 旅游管理专业、会展经济与管理专业、旅游管理与服务教育专业 | P125: 旅游管理专业、新闻学专业、传播学专业 | Q125: 1.具有与学历、专业相应的学位； 2.具有2年及以上基层工作经历。 | R125: 贵阳市云岩区枣山路187号 | S125: 姚郁婷 0851-86865176
G126: 20102021402 | H126: 1 | I126: A | J126: 管理岗位 | K126: 从事公园宣传工作。 | L126: 否 | M126: 本科及以上 | O126: 新闻学专业、网络与新媒体专业、广播电视学专业 | P126: 新闻学专业、传播学专业、汉语言文字学专业 | Q126: 1.中共党员（含预备党员）； 2.具有与学历、专业相应的学位。 | R126: 贵阳市云岩区枣山路187号 | S126: 姚郁婷 0851-86865176
A127: =MAX($A$1:A126)+1 -> 36 | B127: 云岩区工业和信息化局 | C127: =MAX($C$8:C126)+1 -> 0215 | D127: 云岩区工业经济发展服务中心 | E127: 全额拨款 | F127: 1 | G127: 20102021501 | H127: 1 | I127: A | J127: 管理岗位 | K127: 从事工业领域在招商引资、宣传推介、产业研究、技术创新试点示范项目推广应用等方面的相关服务工作。 | L127: 否 | M127: 本科及 以上 | O127: 工业设计专业、机械工程专业、机械设计制造及其自动化专业 | P127: 机械设计及理论专业、航空宇航制造工程专业、食品科学专业 | Q127: 具有与学历、专业相应的学位。 | R127: 贵阳市云岩区未来方舟D12组团 | S127: 张红敏、徐燕 0851-86679314
A128: =MAX($A$1:A127)+1 -> 37 | B128: 云岩区水务管理局 | C128: =MAX($C$8:C127)+1 -> 0216 | D128: 云岩区水利站 | E128: 全额拨款 | F128: 1 | G128: 20102021601 | H128: 1 | I128: A | J128: 管理岗位 | K128: 从事城市供水、水资源管理、水旱灾害防御、河湖管理等工作。 | L128: 否 | M128: 本科及以上 | O128: 给排水科学与工程专业、城市水系统工程专业、水利水电工程专业、水务工程专业、水利科学与工程专业、智慧水利专业 | P128: 结构工程专业、市政工程专业、防灾减灾工程及防护工程专业、水工结构工程专业、水利水电工程专业 | Q128: 具有与学历、专业相应的学位。 | R128: 贵阳市云岩区未来方舟D12组团 | S128: 罗玲 0851-86652160
A129: =MAX($A$1:A128)+1 -> 38 | B129: 云岩区退役军人事务局 | C129: =MAX($C$8:C128)+1 -> 0217 | D129: 云岩区退役军人服务中心 | E129: 全额拨款 | F129: 1 | G129: 20102021701 | H129: 1 | I129: A | J129: 管理岗位 | K129: 从事退役军人事务管理服务工作。 | L129: 否 | M129: 本科及 以上 | O129: 不限 | P129: 不限 | Q129: 1.具有与学历、专业相应的学位； 2.定向招聘退役大学生士兵。 | R129: 贵阳市云岩区渔安新城D组团1栋负1层2号 | S129: 赵倩 0851-85923768
A130: =MAX($A$1:A129)+1 -> 39 | B130: 云岩区大数据发展管理局 | C130: =MAX($C$8:C129)+1 -> 0218 | D130: 云岩区大数据产业促进中心 | E130: 全额拨款 | F130: 2 | G130: 20102021801 | H130: 2 | I130: A | J130: 管理岗位 | K130: 统筹全区数据资源管理与利用，负责分类分级管理、公共数据归集共享开放、跨部门信息互通；协同推进数字政府建设与共性基础设施规划，管理区级政务信息化项目，推动系统整合与数据融合应用；协调促进数字经济发展，推动数字产业化、产业数字化转型，负责大数据、软件和信息技术服务业行业管理，深化数字经济与实体经济融合，研究提出大数据产业发展相关对策建议；负责推动数据领域相关法规制度的落实，开展数据合规管理与监督，参与数字政府、数字经济相关规范性文件的制定与合法性审查。 | L130: 否 | M130: 本科及 以上 | O130: 经济学（学科门类）、法学（学科门类）、理学（学科门类）、工学（学科门类）、管理学（学科门类） | P130: 经济学（学科门类）、法学（学科门类）、理学（学科门类）、工学（学科门类）、管理学（学科门类） | Q130: 1.具有与学历、专业相应的学位； 2.定向招聘2026年度高校毕业生。 | R130: 贵阳市云岩区未来方舟D12组团 | S130: 路曼 0851-85520609
A131: =MAX($A$1:A130)+1 -> 40 | B131: 云岩区政府直属 | C131: =MAX($C$8:C130)+1 -> 0219 | D131: 云岩区投资促进局 | E131: 全额拨款 | F131: 1 | G131: 20102021901 | H131: 1 | I131: A | J131: 管理岗位 | K131: 从事生产性服务业、电子信息制造业、大数据产业开展招商相关工作。 | L131: 否 | M131: 研究生及以上 | P131: 信息与通信工程（一级学科）、机械工程（一级学科）、控制科学与工程（一级学科）、电子科学与技术（一级学科） | Q131: 具有与学历、专业相应的学位。 | R131: 贵阳市云岩区新添大道南段229号 | S131: 高雅 0851-86679101
A132: =MAX($A$1:A131)+1 -> 41 | B132: 云岩区政府直属 | C132: =MAX($C$8:C131)+1 -> 0220 | D132: 云岩区人民政府政务服务中心 | E132: 全额拨款 | F132: 1 | G132: 20102022001 | H132: 1 | I132: A | J132: 管理岗位 | K132: 从事办公室综合管理工作。 | L132: 否 | M132: 本科及以上 | O132: 法学类(一级学科)、中国语言文学类（一级学科）、新闻传播学类（一级学科） | P132: 法学（一级学科）、新闻传播学（一级学科）、中国语言文学（一级学科） | Q132: 1.具有与学历、专业相应的学位； 2.定向招聘基层项目人员。 | R132: 贵阳市云岩区北京东路未来方舟F4组团 | S132: 聂淑珍 0851-87162221
A133: =MAX($A$1:A132)+1 -> 42 | B133: 南明区人民政府办公室 | C133: 0301 | D133: 南明区人民政府政务服务中心 | E133: 全额拨款 | F133: 1 | G133: 20103030101 | H133: 1 | I133: A | J133: 管理岗位 | K133: 从事财务管理、预算支出、账户系统管理、会计核算等工作。 | L133: 否 | M133: 研究生 | P133: 财政学（含∶税收学）专业、会计学专业、会计(专硕) | Q133: 具有与学历、专业相应的学位。 | R133: 贵阳市南明区青云路285号 | S133: 袁俪文 0851-85842131
A134: =MAX($A$1:A133)+1 -> 43 | B134: 南明区教育局 | C134: =MAX($C$8:C133)+1 -> 0302 | D134: 南明区教育发展服务中心 | E134: 全额拨款 | F134: 2 | G134: 20103030201 | H134: 1 | I134: A | J134: 管理岗位 | K134: 从事计算机、电子政务等方面相关工作。 | L134: 否 | M134: 研究生 | P134: 计算机科学与技术（一级学科） | Q134: 具有与学历、专业相应的学位。 | R134: 贵阳市南明区新华路19号君悦华庭C座4-5楼 | S134: 欧丽 0851-85818499
G135: 20103030202 | H135: 1 | I135: A | J135: 管理岗位 | K135: 从事电子政务、计算机等方面相关工作。 | L135: 否 | M135: 研究生 | P135: 计算机科学与技术（一级学科） | Q135: 1.具有与学历、专业相应的学位； 2.定向招聘2026年度高校毕业生。 | R135: 贵阳市南明区新华路19号君悦华庭C座4-5楼 | S135: 欧丽 0851-85818499
A136: =MAX($A$1:A135)+1 -> 44 | B136: 南明区民政局 | C136: =MAX($C$8:C135)+1 -> 0303 | D136: 南明区殡葬管理所 | E136: 全额拨款 | F136: 1 | G136: 20103030301 | H136: 1 | I136: A | J136: 管理岗位 | K136: 从事殡葬执法工作。 | L136: 否 | M136: 研究生 | P136: 法学（一级学科） | Q136: 1.具有与学历、专业相应的学位； 2.具有A类法律职业资格证书； 3.定向招聘2026年度高校毕业生。 | R136: 贵阳市南明区箭道街78号经协大厦16楼 | S136: 冯杉 0851-85812394
A137: =MAX($A$1:A136)+1 -> 45 | B137: 南明区财政局 | C137: =MAX($C$8:C136)+1 -> 0304 | D137: 南明区财政国库集中支付中心 | E137: 全额拨款 | F137: 2 | G137: 20103030401 | H137: 1 | I137: A | J137: 管理岗位 | K137: 从事财政业务合法合规性管理。 | L137: 否 | M137: 研究生 | P137: 法学(一级学科)、法律(专硕) | Q137: 具有与学历、专业相应的学位。 | R137: 贵阳市南明区瑞金南路332号12-13楼 | S137: 李剑霄 0851-85860847
G138: 20103030402 | H138: 1 | I138: A | J138: 管理岗位 | K138: 从事财政工程类业务管理。 | L138: 否 | M138: 研究生 | P138: 工程管理专业、管理科学与工程专业 | Q138: 具有与学历、专业相应的学位。 | R138: 贵阳市南明区瑞金南路332号12-13楼 | S138: 李剑霄 0851-85860847
A139: =MAX($A$1:A138)+1 -> 46 | B139: 南明区人力资源和社会保障局 | C139: =MAX($C$8:C138)+1 -> 0305 | D139: 南明区劳动人事争议仲裁院 | E139: 全额拨款 | F139: 1 | G139: 20103030501 | H139: 1 | I139: A | J139: 管理岗位 | K139: 依法从事劳动人事争议的调解、仲裁相关工作。 | L139: 否 | M139: 研究生 | P139: 法学(一级学科)、法律(专硕) | Q139: 1.具有与学历、专业相应的学位； 2.具有A类法律职业资格证书。 | R139: 贵阳市南明区新华路108号 | S139: 潘薛 0851-85504973
A140: =MAX($A$1:A139)+1 -> 47 | B140: 南明区住房和城乡建设局 | C140: =MAX($C$8:C139)+1 -> 0306 | D140: 南明区住房保障中心 | E140: 全额拨款 | F140: 1 | G140: 20103030601 | H140: 1 | I140: A | J140: 管理岗位 | K140: 从事法律事务相关工作。 | L140: 否 | M140: 研究生 | P140: 法学(一级学科)、法律(专硕) | Q140: 1.具有与学历、专业相应的学位； 2.具有A类法律职业资格证书。 | R140: 贵阳市南明区箭道街78号经协大厦22楼 | S140: 李易君 0851-85293381
A141: =MAX($A$1:A140)+1 -> 48 | B141: 南明区市场监督管理局 | C141: =MAX($C$8:C140)+1 -> 0307 | D141: 南明区市场监管智慧指挥调度中心 | E141: 全额拨款 | F141: 1 | G141: 20103030701 | H141: 1 | I141: A | J141: 管理岗位 | K141: 从事食品安全监督管理相关工作。 | L141: 否 | M141: 研究生 | P141: 食品科学与工程(一级学科) | Q141: 具有与学历、专业相应的学位。 | R141: 贵阳市南明区兴隆北巷4号 | S141: 谭清碧、吴娜 0851-85868255
A142: =MAX($A$1:A141)+1 -> 49 | B142: 南明区政府直属 | C142: =MAX($C$8:C141)+1 -> 0308 | D142: 南明区投资促进局（南明区会展经济促进办公室） | E142: 全额拨款 | F142: 2 | G142: 20103030801 | H142: 1 | I142: A | J142: 管理岗位 | K142: 从事招商引资相关工作，制订全区招商引资目标、产业发展方向、行业导向、投资导向、规模及重点领域计划；负责组织并协调相关部门进行各类大型经贸交流活动和招商引资活动等。 | L142: 否 | M142: 研究生 | P142: 应用经济学（一级学科） | Q142: 具有与学历、专业相应的学位。 | R142: 贵阳市南明区瑞金南路332号6楼 | S142: 张召麒 0851-85844101
G143: 20103030802 | H143: 1 | I143: A | J143: 管理岗位 | K143: 从事项目服务相关工作，策划、开发、筛选和调整、包装、更新招商引资项目；建立和完善全区招商引资项目库，编印投资促进发展相关资料；招商引资成效统计等。 | L143: 否 | M143: 研究生 | P143: 应用经济学（一级学科）、统计学（一级学科）、应用统计(专硕) | Q143: 具有与学历、专业相应的学位。 | R143: 贵阳市南明区瑞金南路332号6楼 | S143: 张召麒 0851-85844101
A144: =MAX($A$1:A143)+1 -> 50 | B144: 南明区政府直属 | C144: =MAX($C$8:C143)+1 -> 0309 | D144: 南明区房屋征收服务中心 | E144: 全额拨款 | F144: 1 | G144: 20103030901 | H144: 1 | I144: A | J144: 管理岗位 | K144: 从事房屋征收相关工作。 | L144: 否 | M144: 研究生 | P144: 建筑学（一级学科）、建筑学（专硕）、土木工程（一级学科）、土木工程专业（专硕） | Q144: 1.具有与学历、专业相应的学位； 2.定向招聘2026年度高校毕业生。 | R144: 贵阳市南明区南厂路22号写字楼12层 | S144: 金芳桐 0851-85293278
A145: =MAX($A$1:A144)+1 -> 51 | B145: 中共南明区委政法委员会 | C145: =MAX($C$8:C144)+1 -> 0310 | D145: 南明区法学会 | E145: 全额拨款 | F145: 1 | G145: 20103031001 | H145: 1 | I145: A | J145: 管理岗位 | K145: 从事综合协调、文稿起草及党务政务等相关工作。 | L145: 否 | M145: 研究生 | P145: 法学(一级学科)、马克思主义理论(一级学科)、政治学(一级学科) | Q145: 1.中共党员（含预备党员）； 2.具有与学历、专业相应的学位。 | R145: 贵阳市南明区箭道南巷21号 | S145: 杨钊铖、龙安琴0851-85868803
A146: =MAX($A$1:A145)+1 -> 52 | B146: 南明区永乐乡政府 | C146: =MAX($C$8:C145)+1 -> 0311 | D146: 南明区永乐乡党务政务服务中心 | E146: 全额拨款 | F146: 1 | G146: 20103031101 | H146: 1 | I146: A | J146: 管理岗位 | K146: 从事财务相关工作。 | L146: 否 | M146: 本科及以上 | O146: 会计学专业、财务管理专业、审计学专业、资产评估专业 | P146: 资产评估(专硕)、会计学专业、会计(专硕)、审计(专硕) | Q146: 具有与学历、专业相应的学位。 | R146: 贵阳市南明区永乐乡永乐街1号 | S146: 彭畅 0851-83991251
C147: =MAX($C$8:C146)+1 -> 0312 | D147: 南明区永乐乡农业农村综合服务中心 | E147: 全额拨款 | F147: 1 | G147: 20103031201 | H147: 1 | I147: A | J147: 管理岗位 | K147: 从事乡村振兴规划相关工作。 | L147: 否 | M147: 本科及以上 | O147: 城乡规划专业、风景园林专业、农林经济管理专业、乡村治理专业、农学专业、园艺专业、植物保护专业 | P147: 城乡规划学（一级学科）、风景园林学（一级学科）、农林经济管理（一级学科）、园艺学（一级学科）、作物学（一级学科）、植物保护（一级学科） | Q147: 具有与学历、专业相应的学位。 | R147: 贵阳市南明区永乐乡永乐街1号 | S147: 彭畅 0851-83991251
C148: =MAX($C$8:C147)+1 -> 0313 | D148: 南明区永乐乡综合治理服务中心 | E148: 全额拨款 | F148: 1 | G148: 20103031301 | H148: 1 | I148: A | J148: 管理岗位 | K148: 从事法律事务相关工作。 | L148: 否 | M148: 研究生 | P148: 法学（一级学科）、法律(专硕) | Q148: 1.具有与学历、专业相应的学位； 2.具有A类法律职业资格证书。 | R148: 贵阳市南明区永乐乡永乐街1号 | S148: 彭畅 0851-83991251
A149: =MAX($A$1:A148)+1 -> 53 | B149: 南明区人民政府新华路街道办事处 | C149: =MAX($C$8:C148)+1 -> 0314 | D149: 南明区新华路街道党务政务服务中心 | E149: 全额拨款 | F149: 1 | G149: 20103031401 | H149: 1 | I149: A | J149: 管理岗位 | K149: 从事公文写作、信息宣传、综合管理等办公室日常工作。 | L149: 否 | M149: 研究生 | P149: 中国语言文学（一级学科）、新闻传播学（一级学科）、新闻与传播（专硕） | Q149: 1.具有与学历、专业相应的学位； 2.定向招聘2026年度高校毕业生。 | R149: 贵阳市南明区新华路石岭街5号 | S149: 王林林 0851-85521205
C150: =MAX($C$8:C149)+1 -> 0315 | D150: 南明区新华路街道综合治理服务中心 | E150: 全额拨款 | F150: 1 | G150: 20103031501 | H150: 1 | I150: A | J150: 管理岗位 | K150: 从事社会治安综合治理、信访维稳等相关工作。 | L150: 否 | M150: 本科及以上 | O150: 不限专业 | P150: 不限专业 | Q150: 1.具有与学历、专业相应的学位； 2.定向招聘基层项目服务人员。 | R150: 贵阳市南明区新华路石岭街5号 | S150: 王林林 0851-85521205
A151: =MAX($A$1:A150)+1 -> 54 | B151: 南明区人民政府遵义路街道办事处 | C151: =MAX($C$8:C150)+1 -> 0316 | D151: 南明区遵义路街道党务政务服务中心 | E151: 全额拨款 | F151: 1 | G151: 20103031601 | H151: 1 | I151: A | J151: 管理岗位 | K151: 从事行政事务、公文写作等办公室日常工作。 | L151: 否 | M151: 本科及以上 | O151: 政治学类（一级学科）、法学类（一级学科） | P151: 政治学（一级学科）、法学（一级学科）、法律(专硕) | Q151: 具有与学历、专业相应的学位。 | R151: 贵阳市南明区解放路188号 | S151: 许曜环 0851-85960050
C152: =MAX($C$8:C151)+1 -> 0317 | D152: 南明区遵义路街道社区事务服务中心 | E152: 全额拨款 | F152: 1 | G152: 20103031701 | H152: 1 | I152: A | J152: 管理岗位 | K152: 从事居民服务、社区事务管理等相关工作。 | L152: 否 | M152: 本科及以上 | O152: 不限专业 | P152: 不限专业 | Q152: 1.具有与学历、专业相应的学位； 2.定向招聘退役大学生士兵。 | R152: 贵阳市南明区解放路188号 | S152: 许曜环 0851-85960050
C153: =MAX($C$8:C152)+1 -> 0318 | D153: 南明区遵义路街道优化营商环境服务中心 | E153: 全额拨款 | F153: 1 | G153: 20103031801 | H153: 1 | I153: A | J153: 管理岗位 | K153: 从事优化营商环境、招商引资等相关工作。 | L153: 否 | M153: 研究生 | P153: 经济学(学科门类) | Q153: 具有与学历、专业相应的学位。 | R153: 贵阳市南明区解放路188号 | S153: 许曜环 0851-85960050
A154: =MAX($A$1:A153)+1 -> 55 | B154: 南明区人民政府中华南路街道办事处 | C154: =MAX($C$8:C153)+1 -> 0319 | D154: 南明区中华南路街道党务政务服务中心 | E154: 全额拨款 | F154: 1 | G154: 20103031901 | H154: 1 | I154: A | J154: 管理岗位 | K154: 从事办公室材料撰写及党务政务服务相关工作。 | L154: 否 | M154: 本科及以上 | O154: 中国语言文学类（一级学科） | P154: 中国语言文学（一级学科） | Q154: 1.具有与学历、专业相应的学位； 2.定向招聘2026年度高校毕业生。 | R154: 贵阳市南明区法院街42号 | S154: 唐增辉 18985174396
C155: =MAX($C$8:C154)+1 -> 0320 | D155: 南明区中华南路街道优化营商环境服务中心 | E155: 全额拨款 | F155: 1 | G155: 20103032001 | H155: 1 | I155: A | J155: 管理岗位 | K155: 从事统计、调查、数据处理、统计分析研究等工作。 | L155: 否 | M155: 研究生 | P155: 经济学(学科门类)、会计学专业、会计(专硕) | Q155: 1.具有与学历、专业相应的学位； 2.定向招聘2026年度高校毕业生。 | R155: 贵阳市南明区法院街42号 | S155: 唐增辉 18985174396
A156: =MAX($A$1:A155)+1 -> 56 | B156: 南明区人民政府油榨街道办事处 | C156: =MAX($C$8:C155)+1 -> 0321 | D156: 南明区油榨街道党务政务服务中心 | E156: 全额拨款 | F156: 1 | G156: 20103032101 | H156: 1 | I156: A | J156: 管理岗位 | K156: 从事公文写作、信息宣传、综合管理及办公室日常工作。 | L156: 否 | M156: 研究生 | P156: 中国语言文学（一级学科）、新闻传播学（一级学科）、新闻与传播（专硕） | Q156: 具有与学历、专业相应的学位。 | R156: 贵阳市南明区市南路43号 | S156: 陈卓 0851-85500850
C157: =MAX($C$8:C156)+1 -> 0322 | D157: 南明区油榨街道综合治理服务中心 | E157: 全额拨款 | F157: 1 | G157: 20103032201 | H157: 1 | I157: A | J157: 管理岗位 | K157: 从事财务等相关工作。 | L157: 否 | M157: 本科及以上 | O157: 会计学专业、财务管理专业、审计学专业 | P157: 会计学专业、会计(专硕)、审计(专硕) | Q157: 具有与学历、专业相应的学位。 | R157: 贵阳市南明区市南路43号 | S157: 陈卓 0851-85500850
A158: =MAX($A$1:A157)+1 -> 57 | B158: 南明区人民政府河滨街道办事处 | C158: =MAX($C$8:C157)+1 -> 0323 | D158: 南明区河滨街道党务政务服务中心 | E158: 全额拨款 | F158: 1 | G158: 20103032301 | H158: 1 | I158: A | J158: 管理岗位 | K158: 从事经济建设 、产业发展综合管理工作。 | L158: 否 | M158: 研究生 | P158: 经济学(学科门类) | Q158: 具有与学历、专业相应的学位。 | R158: 贵阳市南明区瑞金南路46号 | S158: 邹罗庚 17685391186
C159: =MAX($C$8:C158)+1 -> 0324 | D159: 南明区河滨街道社区事务服务中心 | E159: 全额拨款 | F159: 1 | G159: 20103032401 | H159: 1 | I159: A | J159: 管理岗位 | K159: 主要负责辖区劳动保障、民政事务、老龄等相关工作。 | L159: 否 | M159: 本科及以上 | O159: 社会学类（一级学科）、公共管理类（一级学科） | P159: 社会学（一级学科）、公共管理（一级学科）、公共管理(专硕) | Q159: 1.具有与学历、专业相应的学位； 2.定向招聘2026年度高校毕业生。 | R159: 贵阳市南明区瑞金南路46号 | S159: 邹罗庚 17685391186
C160: =MAX($C$8:C159)+1 -> 0325 | D160: 南明区河滨街道综合治理服务中心 | E160: 全额拨款 | F160: 1 | G160: 20103032501 | H160: 1 | I160: A | J160: 管理岗位 | K160: 承担12345，网格化服务、综合治理、安全生产、应急突发事件处理等工作。 | L160: 否 | M160: 研究生 | P160: 中国语言文学（一级学科）、新闻传播学（一级学科）、公共管理（一级学科）、公共管理(专硕) | Q160: 具有与学历、专业相应的学位。 | R160: 贵阳市南明区瑞金南路46号 | S160: 邹罗庚 17685391186
A161: =MAX($A$1:A160)+1 -> 58 | B161: 南明区人民政府兴关路街道办事处 | C161: =MAX($C$8:C160)+1 -> 0326 | D161: 南明区兴关路街道党务政务服务中心 | E161: 全额拨款 | F161: 1 | G161: 20103032601 | H161: 1 | I161: A | J161: 管理岗位 | K161: 从事财务及人事管理等相关工作。 | L161: 否 | M161: 本科及以上 | O161: 会计学专业、财务管理专业、审计学专业 | P161: 会计学专业、会计(专硕)、审计(专硕) | Q161: 1.中共党员（含预备党员）； 2.具有与学历、专业相应的学位； 3.具有初级及以上会计专业技术资格。 | R161: 贵阳市南明区兴关路44号 | S161: 梁美艳 0851-85574629
A162: =MAX($A$1:A161)+1 -> 59 | B162: 南明区人民政府二戈街道办事处 | C162: =MAX($C$8:C161)+1 -> 0327 | D162: 南明区二戈街道党务政务服务中心 | E162: 全额拨款 | F162: 1 | G162: 20103032701 | H162: 1 | I162: A | J162: 管理岗位 | K162: 从事纪检监察相关工作。 | L162: 否 | M162: 研究生 | P162: 法学（一级学科）、会计学专业、会计(专硕)、审计(专硕) | Q162: 1.中共党员（含预备党员）； 2.具有与学历、专业相应的学位。 | R162: 贵阳市南明区富源南路29号 | S162: 李俊 0851-83930415
A163: =MAX($A$1:A162)+1 -> 60 | B163: 南明区人民政府太慈桥街道办事处 | C163: =MAX($C$8:C162)+1 -> 0328 | D163: 南明区太慈桥街道社区事务服务中心 | E163: 全额拨款 | F163: 1 | G163: 20103032801 | H163: 1 | I163: A | J163: 管理岗位 | K163: 从事就业、社会保障、医疗保障、卫生健康服务、党务政务等相关工作。 | L163: 否 | M163: 研究生 | P163: 不限专业 | Q163: 1.中共党员（含预备党员）； 2.具有与学历、专业相应的学位。 | R163: 贵阳市南明区国际城D1组团1栋 | S163: 廖世丽 13511838409
C164: =MAX($C$8:C163)+1 -> 0329 | D164: 南明区太慈桥街道综合治理服务中心 | E164: 全额拨款 | F164: 1 | G164: 20103032901 | H164: 1 | I164: A | J164: 管理岗位 | K164: 从事信访维稳及应急值守工作、社会治安综合治理；网络服务平台建设、运营；矛盾纠纷预防、排查、化解服务等工作。 | L164: 否 | M164: 本科及以上 | O164: 不限专业 | P164: 不限专业 | Q164: 1.中共党员（含预备党员）； 2.具有与学历、专业相应的学位； 3.定向招聘基层项目服务人员。 | R164: 贵阳市南明区国际城D1组团1栋 | S164: 廖世丽 13511838409
A165: =MAX($A$1:A164)+1 -> 61 | B165: 南明区人民政府西湖路街道办事处 | C165: =MAX($C$8:C164)+1 -> 0330 | D165: 南明区西湖路街道党务政务服务中心 | E165: 全额拨款 | F165: 1 | G165: 20103033001 | H165: 1 | I165: A | J165: 管理岗位 | K165: 主要从事退役军人服务工作。 | L165: 否 | M165: 本科及以上 | O165: 不限专业 | P165: 不限专业 | Q165: 1.中共党员（含预备党员）； 2.具有与学历、专业相应的学位； 3.定向招聘退役大学生士兵。 | R165: 贵阳市南明区观水路18号 | S165: 李静 0851-85895130
C166: =MAX($C$8:C165)+1 -> 0331 | D166: 南明区西湖路街道社区事务服务中心 | E166: 全额拨款 | F166: 1 | G166: 20103033101 | H166: 1 | I166: A | J166: 管理岗位 | K166: 主要从事环境卫生、民政事务、党务政务等相关工作。 | L166: 否 | M166: 研究生 | P166: 管理学（学科门类） | Q166: 1.中共党员（含预备党员）； 2.具有与学历、专业相应的学位。 | R166: 贵阳市南明区观水路18号 | S166: 李静 0851-85895130
C167: =MAX($C$8:C166)+1 -> 0332 | D167: 南明区西湖路街道优化营商环境服务中心 | E167: 全额拨款 | F167: 1 | G167: 20103033201 | H167: 1 | I167: A | J167: 管理岗位 | K167: 主要从事辖区经济发展、优化营商环境服务等相关工作。 | L167: 否 | M167: 本科及以上 | O167: 经济学（学科门类） | P167: 经济学（学科门类） | Q167: 1.具有与学历、专业相应的学位； 2.定向招聘2026年度高校毕业生。 | R167: 贵阳市南明区观水路18号 | S167: 李静 0851-85895130
A168: =MAX($A$1:A167)+1 -> 62 | B168: 南明区人民政府水口寺街道办事处 | C168: =MAX($C$8:C167)+1 -> 0333 | D168: 南明区水口寺街道综合治理服务中心 | E168: 全额拨款 | F168: 1 | G168: 20103033301 | H168: 1 | I168: A | J168: 管理岗位 | K168: 从事社会治安综合治理、信访维稳等相关工作。 | L168: 否 | M168: 本科及以上 | O168: 不限专业 | P168: 不限专业 | Q168: 1.具有与学历、专业相应的学位； 2.定向招聘南明区优秀村（社区）干部。 | R168: 贵阳市南明区蟠桃宫路28号 | S168: 王忠生 0851-85882007
C169: =MAX($C$8:C168)+1 -> 0334 | D169: 南明区水口寺街道优化营商环境服务中心 | E169: 全额拨款 | F169: 1 | G169: 20103033401 | H169: 1 | I169: A | J169: 管理岗位 | K169: 从事优化营商环境、招商引资等相关工作。 | L169: 否 | M169: 研究生 | P169: 经济学（学科门类） | Q169: 具有与学历、专业相应的学位。 | R169: 贵阳市南明区蟠桃宫路28号 | S169: 王忠生 0851-85882007
A170: =MAX($A$1:A169)+1 -> 63 | B170: 南明区人民政府中曹司街道办事处 | C170: =MAX($C$8:C169)+1 -> 0335 | D170: 南明区中曹司街道党务政务服务中心 | E170: 全额拨款 | F170: 1 | G170: 20103033501 | H170: 1 | I170: A | J170: 管理岗位 | K170: 从事办公室材料撰写等相关工作。 | L170: 否 | M170: 本科及以上 | O170: 中国语言文学类（一级学科）、新闻传播学类（一级学科） | P170: 中国语言文学（一级学科）、新闻传播学（一级学科）、新闻与传播（专硕） | Q170: 1.具有与学历、专业相应的学位； 2.定向招聘2026年度高校毕业生。 | R170: 贵阳市南明区花溪大道中段甘荫塘小街1号 | S170: 丁小勇 0851-83812540
A171: =MAX($A$1:A170)+1 -> 64 | B171: 南明区人民政府湘雅街道办事处 | C171: =MAX($C$8:C170)+1 -> 0336 | D171: 南明区湘雅街道党务政务服务中心 | E171: 全额拨款 | F171: 1 | G171: 20103033601 | H171: 1 | I171: A | J171: 管理岗位 | K171: 从事公文写作、宣传报道及综合协调等相关工作。 | L171: 否 | M171: 本科及以上 | O171: 新闻传播学类（一级学科） | P171: 新闻传播学（一级学科）、新闻与传播(专硕) | Q171: 1.具有与学历、专业相应的学位； 2.定向招聘2026年度高校毕业生。 | R171: 贵阳市南明区花溪大道北段123号 | S171: 宋江美 0851-85983644
C172: =MAX($C$8:C171)+1 -> 0337 | D172: 南明区湘雅街道综合治理服务中心 | E172: 全额拨款 | F172: 1 | G172: 20103033701 | H172: 1 | I172: A | J172: 管理岗位 | K172: 从事公文写作、宣传报道及综合协调等相关工作。 | L172: 否 | M172: 研究生 | P172: 中国语言文学（一级学科） | Q172: 具有与学历、专业相应的学位。 | R172: 贵阳市南明区花溪大道北段123号 | S172: 宋江美 0851-85983644
A173: =MAX($A$1:A172)+1 -> 65 | B173: 南明区人民政府沙冲路街道办事处 | C173: =MAX($C$8:C172)+1 -> 0338 | D173: 南明区沙冲路街道党务政务服务中心 | E173: 全额拨款 | F173: 1 | G173: 20103033801 | H173: 1 | I173: A | J173: 管理岗位 | K173: 承担党务政务服务，文化宣传，公文写作等工作。 | L173: 否 | M173: 研究生 | P173: 中国语言文学（一级学科） | Q173: 具有与学历、专业相应的学位。 | R173: 贵阳市南明区沙冲路街道朝阳洞路朝阳巷11号 | S173: 朱林霞 15117720265
C174: =MAX($C$8:C173)+1 -> 0339 | D174: 南明区沙冲路街道综合治理服务中心 | E174: 全额拨款 | F174: 1 | G174: 20103033901 | H174: 1 | I174: A | J174: 管理岗位 | K174: 承担“12345”、网格化服务、综合治理、安全生产、应急突发事件处理等工作。 | L174: 否 | M174: 本科及以上 | O174: 不限专业 | P174: 不限专业 | Q174: 1.具有与学历、专业相应的学位； 2.定向招聘退役大学生士兵。 | R174: 贵阳市南明区沙冲路街道朝阳洞路朝阳巷11号 | S174: 朱林霞 15117720265
C175: =MAX($C$8:C174)+1 -> 0340 | D175: 南明区沙冲路街道优化营商环境服务中心 | E175: 全额拨款 | F175: 1 | G175: 20103034001 | H175: 1 | I175: A | J175: 管理岗位 | K175: 从事会计、财务管理及相关工作。 | L175: 否 | M175: 本科及以上 | O175: 会计学专业、财务管理专业、审计学专业、财务会计与审计专业、会计专业 | P175: 会计(专硕)、审计(专硕)、会计学专业、财政学专业 | Q175: 具有与学历、专业相应的学位。 | R175: 贵阳市南明区沙冲路街道朝阳洞路朝阳巷11号 | S175: 朱林霞 15117720265
A176: =MAX($A$1:A175)+1 -> 66 | B176: 南明区人民政府望城街道办事处 | C176: =MAX($C$8:C175)+1 -> 0341 | D176: 南明区望城街道党务政务服务中心 | E176: 全额拨款 | F176: 1 | G176: 20103034101 | H176: 1 | I176: A | J176: 管理岗位 | K176: 从事办公室材料撰写及党务政务服务相关工作。 | L176: 否 | M176: 研究生 | P176: 公共管理（一级学科）、公共管理(专硕) | Q176: 具有与学历、专业相应的学位。 | R176: 贵阳市南明区沙冲东路47号 | S176: 吕垚垚 18286679389
C177: =MAX($C$8:C176)+1 -> 0342 | D177: 南明区望城街道综合治理服务中心 | E177: 全额拨款 | F177: 1 | G177: 20103034201 | H177: 1 | I177: A | J177: 管理岗位 | K177: 从事处置应急突发事件、维护社会稳定等工作。 | L177: 否 | M177: 本科及以上 | O177: 安全工程专业、应急技术与管理专业、安全生产监管专业、应急管理专业 | P177: 土木工程（一级学科）、安全科学与工程（一级学科） | Q177: 具有与学历、专业相应的学位。 | R177: 贵阳市南明区沙冲东路47号 | S177: 吕垚垚 18286679389
A178: =MAX($A$1:A177)+1 -> 67 | B178: 南明区人民政府花果园街道办事处 | C178: =MAX($C$8:C177)+1 -> 0343 | D178: 南明区花果园街道党务政务服务中心 | E178: 全额拨款 | F178: 1 | G178: 20103034301 | H178: 1 | I178: A | J178: 管理岗位 | K178: 从事公文写作、宣传等工作。 | L178: 否 | M178: 研究生 | P178: 中国语言文学（一级学科）、新闻传播学（一级学科）、新闻与传播(专硕) | Q178: 具有与学历、专业相应的学位。 | R178: 贵阳市南明区花果园大街C区16栋3单元1楼 | S178: 靳艳 0851-85913101
C179: =MAX($C$8:C178)+1 -> 0344 | D179: 南明区花果园街道优化营商环境服务中心 | E179: 全额拨款 | F179: 1 | G179: 20103034401 | H179: 1 | I179: A | J179: 管理岗位 | K179: 从事经济发展营造良好营商环境、统计相关工作。 | L179: 否 | M179: 研究生 | P179: 应用经济学(一级学科)、金融(专硕)、应用统计(专硕)、税务(专硕)、国际商务(专硕) | Q179: 具有与学历、专业相应的学位。 | R179: 贵阳市南明区花果园大街C区16栋3单元1楼 | S179: 靳艳 0851-85913101
A180: =MAX($A$1:A179)+1 -> 68 | B180: 南明区人民政府小车河街道办事处 | C180: =MAX($C$8:C179)+1 -> 0345 | D180: 南明区小车河街道社区事务服务中心 | E180: 全额拨款 | F180: 1 | G180: 20103034501 | H180: 1 | I180: A | J180: 管理岗位 | K180: 从事社区事务服务保障相关工作。 | L180: 否 | M180: 本科及以上 | O180: 不限专业 | P180: 不限专业 | Q180: 1.具有与学历、专业相应的学位； 2.定向招聘退役大学生士兵。 | R180: 贵阳市南明区花果园S1区9栋 | S180: 卢菲 0851-85751120
C181: =MAX($C$8:C180)+1 -> 0346 | D181: 南明区小车河街道优化营商环境服务中心 | E181: 全额拨款 | F181: 1 | G181: 20103034601 | H181: 1 | I181: A | J181: 管理岗位 | K181: 从事优化营商、应急突发事件、维护社会稳定等工作。 | L181: 否 | M181: 研究生 | P181: 经济学(学科门类)、管理学(学科门类)、法学(学科门类)、理学(学科门类)、工学(学科门类) | Q181: 具有与学历、专业相应的学位。 | R181: 贵阳市南明区花果园S1区9栋 | S181: 卢菲 0851-85751120
A182: =MAX($A$1:A181)+1 -> 69 | B182: 南明区人民政府兰花都街道办事处 | C182: =MAX($C$8:C181)+1 -> 0347 | D182: 南明区兰花都街道社区事务服务中心 | E182: 全额拨款 | F182: 1 | G182: 20103034701 | H182: 1 | I182: A | J182: 管理岗位 | K182: 从事民生救助、群众服务、党务政务等相关工作。 | L182: 否 | M182: 本科及以上 | O182: 法学(学科门类) | P182: 法学（学科门类） | Q182: 1.中共党员（含预备党员）； 2.具有与学历、专业相应的学位。 | R182: 贵阳市南明区花果园L2区10栋 | S182: 龙昌华 18185138618
A183: =MAX($A$1:A182)+1 -> 70 | B183: 乌当区人民政府办公室 | C183: 0401 | D183: 乌当区人民政府办公室新闻信息站 | E183: 全额拨款 | F183: 1 | G183: 20104040101 | H183: 1 | I183: A | J183: 管理岗位 | K183: 主要负责经济社会发展调研分析及相关新闻信息的采集和编写。 | L183: 否 | M183: 本科及以上 | O183: 经济学类（一级学科）、中国语言文学类（一级学科） | P183: 经济学（学科门类）、文学（学科门类） | Q183: 1.具有与学历、专业相应的学位； 2.定向招聘2026年度高校毕业生。 | R183: 贵阳市乌当区航天大道7号行政中心乌当区人民政府办公室 | S183: 阎晓萌 0851-86402987；15285133286
A184: =MAX($A$1:A183)+1 -> 71 | B184: 乌当区教育局 | C184: 0402 | D184: 乌当区学生资助管理中心 | E184: 全额拨款 | F184: 4 | G184: 20104040201 | H184: 2 | I184: A | J184: 管理岗位 | K184: 主要从事辖区教育系统经费管理、财务收支及预算决算等相关工作。 | L184: 否 | M184: 本科及以上 | O184: 会计学专业、财务管理专业、财务会计教育专业、内部审计专业 | P184: 会计学专业、企业管理专业（含：财务管理、市场营销、人力资源管理）、会计（专硕） | Q184: 具有与学历、专业相应的学位。 | R184: 贵阳市乌当区高新北路2号智汇云锦B3栋 | S184: 张玉梅 0851-86410212；18785094559
G185: 20104040202 | H185: 1 | I185: A | J185: 管理岗位 | K185: 主要从事辖区教育基建工程项目管理及布局规划等相关工作。 | L185: 否 | M185: 本科及以上 | O185: 建筑学专业、城乡规划专业、智慧建筑与建造专业 | P185: 建筑学(专硕)、工程（专硕）、城市规划（专硕） | Q185: 具有与学历、专业相应的学位。
G186: 20104040203 | H186: 1 | I186: A | J186: 管理岗位 | K186: 主要从事辖区教育系统普法宣传及相关法律服务工作。 | L186: 否 | M186: 本科及以上 | O186: 法学专业、司法鉴定学专业、国家安全学专业 | P186: 法学理论专业、宪法学与行政法学专业、诉讼法学专业、法律（专硕） | Q186: 1.具有与学历、专业相应的学位； 2.具有A类法律职业资格证书。
A187: =MAX($A$1:A186)+1 -> 72 | B187: 乌当区财政局 | C187: 0403 | D187: 乌当区财政国库集中支付中心 | E187: 全额拨款 | F187: 2 | G187: 20104040301 | H187: 2 | I187: B | J187: 专业技术岗位 | K187: 主要负责财政国库集中支付、财政授权支付及财政直接支付等相关工作。 | L187: 否 | M187: 本科及以上 | O187: 会计学专业、财政学专业、金融学专业 | P187: 会计学专业、会计（专硕）、财政学专业（含：税收学） | Q187: 1.具有与学历，专业相应的学位； 2.具有初级及以上会计专业技术资格证书； 3.定向招聘2026年度高校毕业生。 | R187: 贵阳市乌当区育新路156号 | S187: 曹光宜 0851-86840021； 杜雯 0851-86845206
A188: =MAX($A$1:A187)+1 -> 73 | B188: 乌当区自然资源局 | C188: 0404 | D188: 乌当区自然资源局百宜镇自然资源所 | E188: 全额拨款 | F188: 1 | G188: 20104040401 | H188: 1 | I188: A | J188: 管理岗位 | K188: 主要负责办公室综合管理及财务工作。 | L188: 否 | M188: 本科及以上 | O188: 经济学（学科门类） | P188: 经济学（学科门类） | Q188: 1.中共党员（含预备党员）； 2.具有与学历、专业相应的学位； 3.具有2年及以上工作经历。 | R188: 贵阳市乌当区航天路26号 | S188: 胡薇 0851-86841422； 18932017170
C189: 0405 | D189: 乌当区地质公园管理服务中心 | E189: 全额拨款 | F189: 1 | G189: 20104040501 | H189: 1 | I189: A | J189: 管理岗位 | K189: 主要负责辖区绿化、森林资源保护、森林防火及林业技能推广等相关工作。 | L189: 否 | M189: 本科及以上 | O189: 林学专业、园林专业、森林保护专业、经济林专业、智慧林业专业 | P189: 林木遗传育种专业、森林保护学专业、野生动植物保护与利用专业 | Q189: 具有与学历、专业相应的学位。 | R189: 贵阳市乌当区航天路26号 | S189: 胡薇 0851-86841422； 18932017170
A190: =MAX($A$1:A189)+1 -> 74 | B190: 乌当区卫生健康局 | C190: 0406 | D190: 乌当区疾病预防控制中心（贵阳市乌当区卫生监督站） | E190: 全额拨款 | F190: 1 | G190: 20104040601 | H190: 1 | I190: B | J190: 专业技术岗位 | K190: 主要从事会计核算审核工作。 | L190: 否 | M190: 本科及以上 | O190: 会计学专业、财务管理专业、审计学专业 | P190: 会计学专业、会计（专硕）、审计（专硕） | Q190: 1.具有与学历、专业相应的学位； 2.具有初级及以上会计专业技术资格证书或初级及以上审计专业技术资格证书。 | R190: 贵阳市乌当区北衙路5号 | S190: 陈颖琪 0851-86845656；13765060775
C191: 0407 | D191: 乌当区妇幼卫生保健院 | E191: 全额拨款 | F191: 1 | G191: 20104040701 | H191: 1 | I191: B | J191: 专业技术岗位 | K191: 主要从事会计核算审核工作。 | L191: 否 | M191: 本科及以上 | O191: 会计学专业、财务管理专业、审计学专业 | P191: 会计学专业、会计（专硕）、审计（专硕） | Q191: 1.具有与学历、专业相应的学位； 2.具有中级及以上会计专业技术资格证书或中级及以上审计专业技术资格证书。 | R191: 贵阳市乌当区新添大道北段124号 | S191: 李伟琳 0851-86415404； 18985059891
A192: =MAX($A$1:A191)+1 -> 75 | B192: 乌当区综合行政执法局 | C192: 0408 | D192: 乌当区综合执法局投诉中心 | E192: 全额拨款 | F192: 1 | G192: 20104040801 | H192: 1 | I192: A | J192: 管理岗位 | K192: 主要负责处理群众对辖区城市管理及综合行政执法等方面的投诉等工作。 | L192: 否 | M192: 本科及以上 | O192: 法学专业、信用风险管理与法律防控专业、纪检监察专业 | P192: 法学理论专业、宪法学与行政法学专业、诉讼法学专业 | Q192: 具有与学历、专业相应的学位。 | R192: 贵阳市乌当区洪济路1号 | S192: 王赢 0851-86842616；13885005128
A193: =MAX($A$1:A192)+1 -> 76 | B193: 贵州乌当经济开发区管理委员会 | C193: 0409 | D193: 贵州乌当经济开发区产业服务中心 | E193: 全额拨款 | F193: 1 | G193: 20104040901 | H193: 1 | I193: B | J193: 专业技术岗位 | K193: 主要负责办公室综合管理及财务工作。 | L193: 否 | M193: 本科及以上 | O193: 会计学专业、财务管理专业、审计学专业 | P193: 会计学专业、会计（专硕）、审计（专硕） | Q193: 1.具有与学历、专业相应的学位； 2.具有初级及以上会计专业技术资格证书； 3.具有2年及以上会计相关工作经历。 | R193: 贵阳市乌当区智汇云锦孵化基地B4栋19楼 | S193: 罗良燕 0851-86402015；13985000803
A194: =MAX($A$1:A193)+1 -> 77 | B194: 乌当区新堡布依族乡人民政府 | C194: 0410 | D194: 乌当区新堡布依族乡党务政务服务中心 | E194: 全额拨款 | F194: 1 | G194: 20104041001 | H194: 1 | I194: A | J194: 管理岗位 | K194: 主要负责组织开展辖区文体活动，协调社会服务资源，提供文教体旅便民服务等相关工作。 | L194: 否 | M194: 本科及以上 | O194: 新闻学专业、传播学专业、网络与新媒体专业 | P194: 新闻学专业、传播学专业、新闻传播学学科专业 | Q194: 1.中共党员（含预备党员）； 2.具有与学历、专业相应的学位。 | R194: 贵阳市乌当区陇上村陇上街上组113 | S194: 黄紫懿 0851-86100010； 18798606896
A195: =MAX($A$1:A194)+1 -> 78 | B195: 乌当区水田镇人民政府 | C195: 0411 | D195: 乌当区水田镇党务政务服务中心 | E195: 全额拨款 | F195: 1 | G195: 20104041101 | H195: 1 | I195: A | J195: 管理岗位 | K195: 主要负责社会保障、退役军人服务及党群文体活动等相关工作。 | L195: 否 | M195: 本科及以上 | O195: 不限专业 | P195: 不限专业 | Q195: 1.具有与学历、专业相应的学位； 2.定向招聘乌当区2025年“三支一扶”服务期满人员。 | R195: 贵阳市乌当区水田镇水田村上街一组85号 | S195: 王燕 0851-88124802； 13809462978
C196: 0412 | D196: 乌当区水田镇农业农村综合服务中心 | E196: 全额拨款 | F196: 1 | G196: 20104041201 | H196: 1 | I196: A | J196: 管理岗位 | K196: 主要从事农业农村管理、涉农补贴及农村集体经济发展等相关工作。 | L196: 否 | M196: 本科及以上 | O196: 不限专业 | P196: 不限专业 | Q196: 1.中共党员（含预备党员）； 2具有与学历、专业相应的学位。
A197: =MAX($A$1:A196)+1 -> 79 | B197: 乌当区羊昌镇人民政府 | C197: 0413 | D197: 乌当区羊昌镇综合治理服务中心 | E197: 全额拨款 | F197: 1 | G197: 20104041301 | H197: 1 | I197: A | J197: 管理岗位 | K197: 主要负责辖区社会治安综合治理，网络服务平台建设、运营及矛盾纠纷预防、排查、化解等工作。 | L197: 否 | M197: 大专及以上 | N197: 不限 | O197: 不限专业 | P197: 不限专业 | Q197: 1.中共党员（含预备党员）； 2.定向招聘乌当区优秀村（社区）干部。 | R197: 贵阳市乌当区羊昌镇羊昌村羊昌西街1号 | S197: 安娜娜 0851-86110029； 13809458782
A198: =MAX($A$1:A197)+1 -> 80 | B198: 乌当区下坝镇人民政府 | C198: 0414 | D198: 乌当区下坝镇党务政务服务中心 | E198: 全额拨款 | F198: 1 | G198: 20104041401 | H198: 1 | I198: A | J198: 管理岗位 | K198: 主要负责党务政务服务及社会保障、住房保障、养老助残等便民服务工作。 | L198: 否 | M198: 本科及以上 | O198: 不限专业 | P198: 不限专业 | Q198: 1.具有与学历、专业相应的学位； 2.定向招聘乌当区2025年“三支一扶”服务期满人员。 | R198: 贵阳市乌当区下坝镇下坝村街上组209号 | S198: 陈叶叶 0851-86280204；13368522007
A199: =MAX($A$1:A198)+1 -> 81 | B199: 乌当区新场镇人民政府 | C199: 0415 | D199: 乌当区新场镇农业农村综合服务中心 | E199: 全额拨款 | F199: 1 | G199: 20104041501 | H199: 1 | I199: A | J199: 管理岗位 | K199: 主要负责单位财务、会计等有关工作。 | L199: 否 | M199: 本科及以上 | O199: 会计学专业、财务管理专业、审计学专业 | P199: 会计（专硕）、税务（专硕）、审计（专硕） | Q199: 1.中共党员（含预备党员）； 2.具有与学历、专业相应的学位； 3.定向招聘2026年度高校毕业生。 | R199: 贵阳市乌当区新场镇新场村下街组159号 | S199: 龙国兰 0851-86130002； 18785036103
A200: =MAX($A$1:A199)+1 -> 82 | B200: 乌当区百宜镇人民政府 | C200: 0416 | D200: 乌当区百宜镇农业农村综合服务中心 | E200: 全额拨款 | F200: 1 | G200: 20104041601 | H200: 1 | I200: A | J200: 管理岗位 | K200: 主要从事农业农村管理、涉农补贴及农村集体经济发展等相关工作。 | L200: 否 | M200: 本科及以上 | O200: 不限专业 | P200: 不限专业 | Q200: 1.具有与学历、专业相应的学位； 2.定向招聘基层项目服务人员。 | R200: 贵阳市乌当区百宜镇百宜街上94号 | S200: 刘芳 0851-86113002； 18722955128
A201: =MAX($A$1:A200)+1 -> 83 | B201: 乌当区人民政府观溪路街道办事处 | C201: 0417 | D201: 乌当区观溪路街道优化营商环境服务中心 | E201: 全额拨款 | F201: 1 | G201: 20104041701 | H201: 1 | I201: A | J201: 管理岗位 | K201: 主要负责开展辖区企业服务、对外交流合作及推介等相关工作。 | L201: 否 | M201: 本科及以上 | O201: 不限专业 | P201: 不限专业 | Q201: 1.具有与学历、专业相应的学位； 2.定向招聘基层项目服务人员。 | R201: 贵阳市乌当区观溪路街道观溪北路5号 | S201: 徐冰玉 0851-86453029；18184014255
A202: =MAX($A$1:A201)+1 -> 84 | B202: 乌当区人民政府新光路街道办事处 | C202: 0418 | D202: 乌当区新光路街道党务政务服务中心 | E202: 全额拨款 | F202: 1 | G202: 20104041801 | H202: 1 | I202: A | J202: 管理岗位 | K202: 主要负责辖区党务政务服务及社会保障、住房保障、养老助残等相关工作。 | L202: 否 | M202: 本科及以上 | O202: 不限专业 | P202: 不限专业 | Q202: 1.中共党员（含预备党员）； 2.具有与学历、专业相应的学位； 3.定向招聘基层项目服务人员。 | R202: 贵阳市乌当区新添大道北段110号 | S202: 韩娟 0851-86200973； 18984180671
A203: =MAX($A$1:A202)+1 -> 85 | B203: 乌当区人民政府新创路街道办事处 | C203: 0419 | D203: 乌当区新创路街道党务政务服务中心 | E203: 全额拨款 | F203: 1 | G203: 20104041901 | H203: 1 | I203: A | J203: 管理岗位 | K203: 主要负责党务政务服务，组织社区开展各类党群文体活动等相关工作。 | L203: 否 | M203: 本科及以上 | O203: 不限专业 | P203: 不限专业 | Q203: 1.中共党员（含预备党员）； 2.具有与学历、专业相应的学位。 | R203: 贵阳市乌当区创业路2号 | S203: 王晓霞 0851-86463977；15186999484
A204: =MAX($A$1:A203)+1 -> 86 | B204: 乌当区人民政府龙广路街道办事处 | C204: 0420 | D204: 乌当区龙广路街道党务政务服务中心 | E204: 全额拨款 | F204: 1 | G204: 20104042001 | H204: 1 | I204: A | J204: 管理岗位 | K204: 主要负责辖区党务政务服务，组织开展党群文体活动及社会保障、住房保障、养老助残等相关工作。 | L204: 否 | M204: 本科及以上 | O204: 不限专业 | P204: 不限专业 | Q204: 1.具有与学历、专业相应的学位； 2.定向招聘基层项目服务人员。 | R204: 贵阳市乌当区新添大道北段198号 | S204: 李令佳 0851-86405075；18212893816
A205: =MAX($A$1:A204)+1 -> 87 | B205: 白云区发展和改革局 | C205: 0501 | D205: 白云区粮油购销服务中心 | E205: 全额拨款 | F205: 1 | G205: 20105050101 | H205: 1 | I205: A | J205: 管理岗位 | K205: 从事粮油储存、安全管理等相关工作 | L205: 否 | M205: 本科及以上 | O205: 不限专业 | P205: 不限专业 | Q205: 1.具有与学历、专业相应的学位； 2.因长期需要攀爬粮仓、油罐等设施，建议男性报考。 | R205: 贵阳市白云区云峰大道99号 | S205: 罗茜、张书琪 0851-84616750
A206: =MAX($A$1:A205)+1 -> 88 | B206: 白云区财政局 | C206: 0502 | D206: 白云区财政国库集中支付中心 | E206: 全额拨款 | F206: 1 | G206: 20105050201 | H206: 1 | I206: B | J206: 专业技术岗位 | K206: 从事预算支出、账户系统管理、会计核算等工作。 | L206: 否 | M206: 本科及以上 | O206: 财政学专业、会计学专业、会计专业、财务管理专业、审计学专业 | P206: 会计学专业、会计专业、财政学（含∶税收学）专业、金融学（含∶保险学）专业、金融专业 | Q206: 无 | R206: 贵阳市白云区行政中心北楼三楼 | S206: 罗茜、张书琪 0851-84616750
A207: =MAX($A$1:A206)+1 -> 89 | B207: 白云区人力资源和社会保障局 | C207: 0503 | D207: 白云区劳动保障服务中心 | E207: 全额拨款 | F207: 1 | G207: 20105050301 | H207: 1 | I207: A | J207: 管理岗位 | K207: 从事劳动者权益保障、保障农民工工资支付、常态化开展工地巡查、农民工群体矛盾协调处置等相关工作。 | L207: 否 | M207: 本科及以上 | O207: 不限专业 | P207: 不限专业 | Q207: 1.具有与学历、专业相应的学位； 2.定向招聘退役大学生士兵。 | R207: 贵阳市白云区七一路行政中心二期36-4 | S207: 罗茜、张书琪 0851-84616750
A208: =MAX($A$1:A207)+1 -> 90 | B208: 白云区政府直属 | C208: 0504 | D208: 白云区招商服务中心 | E208: 全额拨款 | F208: 1 | G208: 20105050401 | H208: 1 | I208: A | J208: 管理岗位 | K208: 从事招商引资、优化营商环境建设、办公室文秘等工作。 | L208: 否 | M208: 本科及以上 | O208: 经济学(学科门类) | P208: 经济学(学科门类) | Q208: 无 | R208: 贵阳市白云区云峰大道博泰世界岛B栋20楼 | S208: 罗茜、张书琪 0851-84616750
A209: =MAX($A$1:A208)+1 -> 91 | B209: 白云区文体广电旅游局 | C209: 0505 | D209: 白云区文化馆 | E209: 全额拨款 | F209: 1 | G209: 20105050501 | H209: 1 | I209: B | J209: 专业技术岗位 | K209: 从事群众文化活动的组织、文艺演出、文艺创作培训等相关工作。 | L209: 否 | M209: 本科及以上 | O209: 音乐与舞蹈学类（一级学科）、文化产业管理专业 | P209: 舞蹈学专业、音乐学专业 | Q209: 1.具有与学历、专业相应的学位； 2.定向招聘2026年度高校毕业生。 | R209: 贵阳市白云区七一 路图书馆综合大楼 | S209: 罗茜、张书琪 0851-84616750
... 189 more rows
